{"text_format":"1","workbook":"xlsx","n_sheets":10,"sheets":["お願い","下請工事検査書式（2）","ﾃﾞｰﾀ入力","購入伺－印刷","内訳","変更内訳","注文書","請書","注文書 (変更用)","請書 (変更用)"],"not_rendered":{"charts":0,"images":0,"macros":0,"external_links":6,"defined_names":42,"comments":1,"pivot_tables":0},"unopened":[],"bounds":{"document_bytes":16777216,"sheet_cells":100000,"rows_first":2000,"rows_last":500,"rows_between":2000,"halvings":0,"cell_chars":16384,"cell_head_chars":4096},"cells_cut":0,"cells_raw":0,"read":"whole","date_system":"1900"}

{"sheet":"お願い","index":0,"n_rows":35,"n_cols":12,"rows_kept":35,"cut":false,"hidden":false,"merged":[]}
[null,"稟議書変更のお知らせ"]
[]
[null,"書類の流れ"]
[null,null,null,"現場",null,"社長",null,null,null,null,null,"総務"]
[]
[null,null,null,"稟議書の表紙","→","パソコンで打って社長にメールをする",null,null,null,null,"→","総務"]
[null,null,null,"内訳",null,"※（決済前に）"]
[null,null,null,"外注特記"]
[]
[null,null,null,"稟議書の表紙","→","出力して社長に決済",null,null,null,null,"→","総務"]
[null,null,null,"下請けの見積書",null,"（内訳等をメールで確認しながら）"]
[]
[null,"稟議書受付の締め切り　・　・　・",null,null,"払い月の前月２５日を稟議書受付の締め切りとさせて下さいますよう、"]
[null,null,null,null,"よろしくお願いします。遅れますと総務での社長決裁が間に合わず、"]
[null,null,null,null,"取引先への支払いが来月になります。"]
[]
[null,"稟議書作成についてのお願い"]
[]
[null,"※","「ﾃﾞｰﾀ入力」ｼｰﾄから「稟議書」ｼｰﾄへﾃﾞｰﾀが飛ぶ様になっています。"]
[]
[null,"ﾃﾞｰﾀ入力","一番はじめに入力して下さい。稟議書の表紙のﾃﾞｰﾀです。",null,null,null,null,null,"左側は必須項目"]
[]
[null,"内訳","行を挿入したい場合は既にある行をコピーして挿入してください。"]
[null,null,"金額欄に数式があり、単価と数量が入らないと表示されません。"]
[]
[null,"変更稟議書の内訳・・・・",null,null,"基本的には普通の内訳と同じ書式が守られていれば"]
[null,null,null,null,"上段下段、列を増やすなど各人が今まで出してきた様式で構いません。"]
[null,null,null,null,"変更範囲が少ない場合、変更分内訳抜粋としてそこだけの明細を書き、"]
[null,null,"これは変更内訳で必須→",null,"変更前契約額、変更後契約額、差額、消費税、差額計を"]
[null,null,null,null,"最後に入れておいてください。"]
[]
[]
[null,"外注特記","はじめに「なし」などと入力してあります。上書きしてください。"]
[]
[null,"表紙の特記事項は購入伺ー印刷シートで直接入力してください。"]

{"sheet":"下請工事検査書式（2）","index":1,"n_rows":125,"n_cols":12,"rows_kept":125,"cut":false,"hidden":false,"merged":[[90,2,90,8],[26,2,27,3],[26,4,27,8],[80,2,80,3],[80,4,80,8],[55,1,55,3],[57,6,57,8],[81,4,82,8],[78,2,78,3],[78,4,78,8],[113,2,113,8],[42,7,42,9],[81,2,82,3],[2,3,3,7],[8,1,8,3],[11,2,11,9],[34,7,34,9],[24,2,24,3],[22,4,22,8],[23,2,23,3],[22,2,22,3],[77,4,77,8],[77,2,77,3],[52,7,52,9],[38,2,38,9],[49,3,50,7],[23,4,23,8],[79,2,79,3],[79,4,79,8],[59,7,59,8],[66,2,66,4],[24,4,24,8],[25,2,25,3],[25,4,25,8]]}
[]
[]
[null,null,null,"引渡通知書"]
[]
[]
[]
[]
[]
[null,"        勝 井 建 設 株 式 会 社    ",null,null,"殿"]
[]
[]
[null,null,"　下記の物品を納入いたしましたので、通知いたします。"]
[]
[]
[]
[null,null,"通知いたします。"]
[]
[]
[null,null,null,null,null,"記"]
[]
[]
[]
[null,null,"工　事　名　称",null,{"$f":"ﾃﾞｰﾀ入力!B6","v":0}]
[null,null,"購入品名称",null,{"$f":"ﾃﾞｰﾀ入力!B11","v":0}]
[null,null,"納　　　期",null,{"$f":"IF(ﾃﾞｰﾀ入力!B17=0,ﾃﾞｰﾀ入力!B16,ﾃﾞｰﾀ入力!B17)","v":"00:00:00"}]
[null,null,"請負代金の額",null,{"$f":"\"￥\"&+TEXT(IF(ﾃﾞｰﾀ入力!B13=\"\",ﾃﾞｰﾀ入力!B12,ﾃﾞｰﾀ入力!B13)*1.1,\"#,##0\")&+\"-(税込）\"","v":"￥0-(税込）"}]
[null,null,"備　　　　　　考"]
[]
[]
[]
[]
[]
[]
[]
[null,null,null,null,null,null,"通知年月日","令和　　　　年　　　　月　　　　日"]
[]
[]
[null,null,null,null,null,null,"請負者"]
[null,null,"　上記の工事について、貴社の完成検査に合格しましたので、"]
[]
[null,null,"これを引き渡します。",null,null,null,null,null,null,"㊞"]
[]
[null,null,null,null,null,null,"引渡年月日"]
[]
[]
[]
[]
[]
[]
[null,null,null,"合格・引取通知書"]
[]
[]
[null,null,null,null,null,null,null,"平成　 　　年 　 　月　  　日"]
[]
[]
[null,{"$f":"[5]ﾃﾞｰﾀ入力!B12","v":0},null,null,"殿"]
[]
[null,null,null,null,null,null,"勝　井　建　設　株　式　会　社"]
[]
[null,null,null,null,null,null,"現場代理人",null,null,"印"]
[]
[]
[]
[]
[null,null,"　下記の工事は、"]
[]
[null,null,"平成　 　　年 　 　月　  　日",null,null,"に完成検査を行った結果、"]
[]
[null,null,"合格","と判定しましたので、これを引き取ることを通知いたします。",null,null,null,null,null,null,null,"合格"]
[null,null,null,null,null,null,null,null,null,null,null,"不合格"]
[]
[]
[]
[null,null,null,null,null,"記"]
[]
[]
[]
[null,null,"工　事　名　称",null,{"$f":"E$23","v":0}]
[null,null,"工　事　種　別",null,{"$f":"E$24","v":0}]
[null,null,"完 成 年 月 日",null,{"$f":"#REF!","v":{"$error":"#REF!"}}]
[null,null,"請負代金の額",null,{"$f":"E$26","v":"￥0-(税込）"}]
[null,null,"備　　　　　　考"]
[]
[]
[]
[]
[null,null,"協力業者　各位"]
[]
[]
[]
[null,null,"物品の引渡通知書について"]
[]
[]
[]
[null,null,"　平素お世話になっております。"]
[]
[null,null,"このたび、役所指導により、物品の引渡しについて、書面により一連の経過を"]
[]
[null,null,"整理することといたしますのでご協力をお願いいたします。"]
[]
[]
[null,null,"　※請負者の所へ社印等押印後、請求書と一緒に弊社まで返送をお願い致します。"]
[]
[]
[]
[]
[]
[]
[]
[null,null,"協力業者　各位"]
[]
[]
[]
[null,null,"物品の引渡通知書について"]
[]
[]
[]
[null,null,"　平素お世話になっております。"]
[]
[null,null,"このたび、役所指導により、物品の引渡しについて、書面により一連の経過を"]
[]
[null,null,"整理することといたしますのでご協力をお願いいたします。"]
[]
[]
[null,null,"　※請負者の所へ社印等押印後、請求書と一緒に弊社まで返送をお願い致します。"]

{"sheet":"ﾃﾞｰﾀ入力","index":2,"n_rows":34,"n_cols":6,"rows_kept":34,"cut":false,"hidden":false,"merged":[]}
["提出年月日"]
["作 業 所 名",null,null,"指定メーカー"]
["作業所長名",null,null,"製作工場・製品必要許認可・ＩＳＯ適用他"]
[null,null,null,"必要書類の添付",null,"←いらない所は消去してください。"]
["発　注　者",null,null,"〃",null,"←〃"]
["工 事 名 称",null,null,"〃",null,"←〃"]
["施 工 場 所",null,null,"〃その他あれば入力→"]
["納 入 場 所",null,null,"下請先・工場検査"]
[null,null,null,"時期・回転・検査方法"]
["会　社　名",null,null,"←正式名称を入力してください。（株）、（有）は使わず株式会社・有限会社と入力下さい。"]
["購入品名称",null,null,"←増減変更は後ろに（増額）（減額）をつけてください。"]
["当初及び各現購入金額（税抜）"]
["変更購入金額（税抜）"]
["増・減額（税抜）"]
[]
["当初及び現納期"]
["変更納期"]
["納入方法",null,null,"←納入方法も入力してください。"]
[]
["期日現金払",null,"％"]
["手　　　形",null,"％","←変更契約は前契約を引継いで下さい　分からなければ総務へ"]
["現　　　金",null,"％"]
["サ　イ　ト",null,"日"]
["支 払 条 件",null,null,"←毎月出来高払い＝１、  完成一括払＝２"]
[]
["契約不適合責任期間"]
["工事引き渡し後",null,"年間","←変更契約は前契約を引継いでください。"]
["日付入力→",null,"まで"]
[]
[]
[]
[]
["〒",{"$f":"INDEX([6]!漢字キー,MATCH($B$10,[6]コード!$C$2:$C$1033,0),4)","v":{"$error":"#N/A"}}]
["住所",{"$f":"INDEX([6]!漢字キー,MATCH($B$10,[6]コード!$C$2:$C$1033,0),3)","v":{"$error":"#N/A"}}]

{"sheet":"購入伺－印刷","index":3,"n_rows":1010,"n_cols":69,"rows_kept":1010,"cut":false,"hidden":false,"merged":[[1008,33,1008,36],[1008,37,1008,46],[1000,33,1000,54],[1001,33,1001,54],[1002,33,1002,54],[1003,33,1003,54],[1007,47,1007,50],[1007,51,1007,54],[1004,33,1004,54],[1005,33,1005,54],[1009,33,1009,45],[981,33,982,45],[981,46,981,54],[982,46,982,54],[984,33,984,36],[984,37,984,54],[985,33,985,36],[985,38,985,40],[1007,33,1007,36],[1007,39,1007,44],[1006,33,1006,36],[1006,37,1006,46],[1006,47,1006,50],[1006,51,1006,54],[998,47,998,54],[999,33,999,35],[999,36,999,54],[996,34,996,46],[996,48,996,49],[996,52,996,53],[997,33,997,46],[997,52,997,53],[998,33,998,36],[998,37,998,46],[994,34,994,46],[994,48,994,49],[994,52,994,53],[995,34,995,46],[995,48,995,49],[995,52,995,53],[991,34,991,46],[991,47,991,54],[992,34,992,46],[992,48,992,49],[992,52,992,53],[993,34,993,46],[993,48,993,49],[993,52,993,53],[988,33,988,36],[988,37,988,42],[988,43,988,46],[988,47,988,54],[990,33,990,35],[990,36,990,54],[985,41,985,54],[986,33,986,36],[986,37,986,42],[986,43,986,46],[986,47,986,54],[987,33,987,36],[987,37,987,42],[987,43,987,46],[987,47,987,54],[607,59,607,68],[608,33,609,36],[608,50,609,55],[608,56,609,68],[604,33,607,34],[604,35,605,35],[607,36,607,39],[607,57,607,58],[605,59,605,68],[606,36,606,39],[603,33,603,36],[603,37,603,49],[603,50,603,55],[603,56,603,63],[606,57,606,58],[606,59,606,68],[604,36,605,39],[605,57,605,58],[604,40,604,68],[606,40,606,56],[601,33,601,36],[601,37,601,49],[601,50,601,55],[601,56,601,68],[602,33,602,36],[602,37,602,49],[602,50,602,55],[602,56,602,68],[599,33,599,36],[599,37,599,49],[599,50,600,55],[599,57,599,68],[600,33,600,36],[600,37,600,49],[600,57,600,68],[597,33,597,40],[597,61,597,68],[598,33,598,36],[598,37,598,49],[598,50,598,55],[598,56,598,68],[592,65,592,68],[593,33,593,35],[593,36,593,45],[595,43,595,58],[595,62,595,63],[595,66,595,67],[587,33,587,68],[588,65,588,68],[589,33,589,45],[589,65,589,68],[589,46,589,47],[591,33,591,35],[591,36,591,45],[22,25,22,26],[22,32,22,35],[23,0,23,27],[24,0,24,35],[22,27,22,31],[586,61,586,68],[568,61,568,64],[568,65,568,68],[567,61,567,64],[568,33,568,34],[19,4,19,31],[19,32,19,35],[20,0,20,3],[20,4,20,31],[21,4,21,31],[22,0,22,3],[22,4,22,9],[22,10,22,14],[22,16,22,17],[22,19,22,24],[17,0,17,5],[17,6,17,11],[17,12,17,19],[17,20,17,35],[18,4,18,31],[18,32,18,35],[16,0,16,3],[16,4,16,35],[13,0,14,3],[15,0,15,3],[15,4,15,12],[15,13,15,23],[14,4,14,8],[12,25,12,27],[12,28,12,35],[11,4,11,24],[15,24,15,35],[13,19,13,32],[13,4,13,8],[14,19,14,32],[11,25,11,27],[11,28,11,35],[11,0,11,3],[12,0,12,3],[12,4,12,14],[12,15,12,18],[5,7,5,11],[6,7,6,11],[10,4,10,10],[10,11,10,14],[10,15,10,17],[4,0,4,5],[4,15,4,18],[4,7,4,11],[9,4,9,8],[10,0,10,3],[5,0,5,5],[6,0,6,5],[0,0,0,5],[3,28,3,31],[3,32,3,35],[2,0,2,5],[2,6,2,14],[3,0,3,5],[3,6,3,14],[3,15,3,18],[3,24,3,27],[2,15,2,18],[979,27,979,28],[979,29,979,32],[2,28,2,31],[2,32,2,35],[0,18,0,26],[0,27,0,35],[2,24,2,27],[5,15,5,18],[6,15,6,18],[12,19,12,24],[979,0,979,2],[979,3,979,12],[979,13,979,16],[979,17,979,22],[979,23,979,24],[979,25,979,26],[977,27,977,28],[977,29,977,32],[978,0,978,2],[978,3,978,12],[978,13,978,16],[978,17,978,22],[978,23,978,24],[978,25,978,26],[978,27,978,28],[978,29,978,32],[977,0,977,2],[977,3,977,12],[977,13,977,16],[977,17,977,22],[977,23,977,24],[977,25,977,26],[975,27,975,28],[975,29,975,32],[976,0,976,2],[976,3,976,12],[976,13,976,16],[976,17,976,22],[976,23,976,24],[976,25,976,26],[976,27,976,28],[976,29,976,32],[975,0,975,2],[975,3,975,12],[975,13,975,16],[975,17,975,22],[975,23,975,24],[975,25,975,26],[973,27,973,28],[973,29,973,32],[974,0,974,2],[974,3,974,12],[974,13,974,16],[974,17,974,22],[974,23,974,24],[974,25,974,26],[974,27,974,28],[974,29,974,32],[973,0,973,2],[973,3,973,12],[973,13,973,16],[973,17,973,22],[973,23,973,24],[973,25,973,26],[971,27,971,28],[971,29,971,32],[972,0,972,2],[972,3,972,12],[972,13,972,16],[972,17,972,22],[972,23,972,24],[972,25,972,26],[972,27,972,28],[972,29,972,32],[971,0,971,2],[971,3,971,12],[971,13,971,16],[971,17,971,22],[971,23,971,24],[971,25,971,26],[969,27,969,28],[969,29,969,32],[970,0,970,2],[970,3,970,12],[970,13,970,16],[970,17,970,22],[970,23,970,24],[970,25,970,26],[970,27,970,28],[970,29,970,32],[969,0,969,2],[969,3,969,12],[969,13,969,16],[969,17,969,22],[969,23,969,24],[969,25,969,26],[967,27,967,28],[967,29,967,32],[968,0,968,2],[968,3,968,12],[968,13,968,16],[968,17,968,22],[968,23,968,24],[968,25,968,26],[968,27,968,28],[968,29,968,32],[967,0,967,2],[967,3,967,12],[967,13,967,16],[967,17,967,22],[967,23,967,24],[967,25,967,26],[965,27,965,28],[965,29,965,32],[966,0,966,2],[966,3,966,12],[966,13,966,16],[966,17,966,22],[966,23,966,24],[966,25,966,26],[966,27,966,28],[966,29,966,32],[965,0,965,2],[965,3,965,12],[965,13,965,16],[965,17,965,22],[965,23,965,24],[965,25,965,26],[963,27,963,28],[963,29,963,32],[964,0,964,2],[964,3,964,12],[964,13,964,16],[964,17,964,22],[964,23,964,24],[964,25,964,26],[964,27,964,28],[964,29,964,32],[963,0,963,2],[963,3,963,12],[963,13,963,16],[963,17,963,22],[963,23,963,24],[963,25,963,26],[961,27,961,28],[961,29,961,32],[962,0,962,2],[962,3,962,12],[962,13,962,16],[962,17,962,22],[962,23,962,24],[962,25,962,26],[962,27,962,28],[962,29,962,32],[961,0,961,2],[961,3,961,12],[961,13,961,16],[961,17,961,22],[961,23,961,24],[961,25,961,26],[959,27,959,28],[959,29,959,32],[960,0,960,2],[960,3,960,12],[960,13,960,16],[960,17,960,22],[960,23,960,24],[960,25,960,26],[960,27,960,28],[960,29,960,32],[959,0,959,2],[959,3,959,12],[959,13,959,16],[959,17,959,22],[959,23,959,24],[959,25,959,26],[957,0,958,2],[957,3,958,12],[957,13,958,16],[957,17,958,22],[957,23,957,28],[957,29,958,32],[958,23,958,24],[958,25,958,26],[958,27,958,28],[953,0,954,9],[953,10,953,19],[953,20,953,22],[953,23,953,32],[952,33,952,58],[954,10,954,19],[954,20,954,22],[954,23,954,28],[954,29,954,30],[954,31,954,32],[568,35,568,47],[568,51,568,58],[567,33,567,34],[567,35,567,47],[567,51,567,58],[569,33,569,45],[569,46,569,47],[569,51,569,58],[575,57,575,68],[576,33,576,36],[576,37,577,49],[576,57,576,68],[577,33,577,36],[575,33,575,36],[575,37,575,49],[571,65,571,68],[579,33,579,36],[579,37,579,49],[578,33,578,36],[578,37,578,49],[572,33,572,56],[573,33,573,68],[577,50,577,55],[577,56,577,68],[575,50,576,55],[574,37,574,49],[574,50,574,55],[563,61,563,68],[564,33,564,68],[566,33,566,34],[566,35,566,47],[566,51,566,57],[571,61,571,64],[574,56,574,68],[574,33,574,36],[583,57,583,58],[583,59,583,68],[582,57,582,58],[582,59,582,68],[580,40,580,68],[582,40,582,56],[581,57,581,58],[581,59,581,68],[579,50,579,55],[579,56,579,63],[578,50,578,55],[578,56,578,68],[584,33,585,36],[584,50,585,55],[584,56,585,68],[580,33,583,34],[580,35,581,35],[580,36,581,39],[582,36,582,39],[583,36,583,39],[617,36,617,38],[618,36,618,47],[610,60,610,67],[611,60,611,63],[611,64,611,67],[612,60,612,63],[612,64,612,67],[615,60,615,63],[615,64,615,67],[627,36,627,67],[629,35,629,40],[623,36,623,38],[623,39,623,44],[623,46,623,48],[623,50,623,55],[625,35,625,37],[626,36,626,67],[634,38,634,67],[635,36,635,37],[635,38,635,67],[636,38,636,53],[636,54,636,55],[636,56,636,67],[686,36,687,67],[691,36,691,67],[692,37,692,67],[637,35,637,41],[638,36,638,42],[639,36,639,67],[640,36,640,67],[642,35,642,37],[643,36,643,39],[644,35,644,44],[705,35,705,41],[706,36,708,67],[711,36,711,67],[713,35,713,40],[714,36,714,67],[710,35,710,38],[718,56,718,63],[719,33,719,63],[721,33,721,35],[722,34,723,68],[716,35,716,37],[717,36,717,67],[742,34,742,63],[738,33,738,36],[733,33,733,37],[725,33,725,39],[726,34,726,63],[729,34,731,68],[728,33,728,36],[769,33,769,63],[734,34,736,68],[746,34,747,67],[749,33,749,35],[750,34,750,63],[743,33,743,63],[744,54,744,63],[745,33,745,39],[739,34,739,63],[741,33,741,35],[644,61,644,67],[630,36,630,67],[632,35,632,41],[633,36,633,37],[633,38,633,67],[619,36,619,38],[620,36,620,47],[621,36,621,38],[622,36,622,38],[622,39,622,44],[645,35,645,44],[645,45,645,54],[645,55,645,57],[645,58,645,60],[644,45,644,54],[644,55,644,57],[644,58,644,60],[647,35,647,44],[647,45,647,54],[647,55,647,57],[647,58,647,60],[645,61,645,67],[646,35,646,44],[646,45,646,54],[646,55,646,57],[646,58,646,60],[646,61,646,67],[649,35,649,44],[649,45,649,54],[649,55,649,57],[649,58,649,60],[647,61,647,67],[648,35,648,44],[648,45,648,54],[648,55,648,57],[648,58,648,60],[648,61,648,67],[652,35,652,38],[653,36,653,41],[654,35,654,44],[654,45,654,54],[649,61,649,67],[650,35,650,44],[650,45,650,54],[650,55,650,57],[650,58,650,60],[650,61,650,67],[654,55,654,57],[654,58,654,60],[654,61,654,67],[655,61,655,67],[655,35,655,44],[655,45,655,54],[655,55,655,57],[655,58,655,60],[656,61,656,67],[657,35,657,44],[657,45,657,54],[657,55,657,57],[657,58,657,60],[657,61,657,67],[656,35,656,44],[656,45,656,54],[656,55,656,57],[656,58,656,60],[658,61,658,67],[659,35,659,44],[659,45,659,54],[659,55,659,57],[659,58,659,60],[659,61,659,67],[658,35,658,44],[658,45,658,54],[658,55,658,57],[658,58,658,60],[660,61,660,67],[661,61,661,67],[661,35,661,44],[661,45,661,54],[661,55,661,57],[661,58,661,60],[660,35,660,44],[660,45,660,54],[660,55,660,57],[660,58,660,60],[667,35,667,36],[667,37,667,46],[667,47,667,48],[667,49,667,60],[666,35,666,36],[666,37,666,46],[666,47,666,48],[666,49,666,60],[669,35,669,36],[669,37,669,46],[669,47,669,48],[669,49,669,60],[668,35,668,36],[668,37,668,46],[668,47,668,48],[668,49,668,60],[670,37,670,46],[682,36,683,67],[685,35,685,40],[673,36,673,39],[674,37,674,67],[675,37,675,67],[676,37,676,67],[670,47,670,48],[670,49,670,60],[662,45,662,54],[662,55,662,57],[662,58,662,60],[677,37,677,67],[679,36,680,67],[671,35,671,36],[671,37,671,46],[671,47,671,48],[671,49,671,60],[670,35,670,36],[702,36,703,67],[693,37,694,67],[695,37,695,67],[696,37,696,67],[697,37,697,67],[699,36,699,67],[701,35,701,38],[612,37,613,56],[665,36,665,68],[664,35,664,38],[662,61,662,67],[663,35,663,44],[663,45,663,54],[663,55,663,57],[663,58,663,60],[663,61,663,67],[662,35,662,44],[6,28,6,31],[6,32,6,35],[10,18,10,20],[10,21,10,25],[10,26,10,29],[6,24,6,27],[10,30,10,33],[9,26,9,29],[9,30,9,33]]}
["購　　入　　伺　　書",null,null,null,null,null,null,null,null,null,null,null,null,null,null,null,null,null,null,null,null,null,null,null,null,null,null,null,null,null,null,null,null,null,null,null,{"$f":"ﾃﾞｰﾀ入力!$B$24","v":0}]
[]
["納　入　会　社　名：",null,null,null,null,null,{"$f":"ﾃﾞｰﾀ入力!B10","v":0},null,null,null,null,null,null,null,null,"（継続・新規）",null,null,null,null,null,null,null,null,"承　認",null,null,null,"確　認",null,null,null,"協議･審査"]
["購　入　品　名　称：",null,null,null,null,null,{"$f":"ﾃﾞｰﾀ入力!B11","v":0},null,null,null,null,null,null,null,null,"（内訳別紙）",null,null,null,null,null,null,null,null,"社　長",null,null,null,"担当部門長",null,null,null,"担当部長"]
["当初又は現購入金額（税抜）：",null,null,null,null,null,null,{"$f":"IF(ﾃﾞｰﾀ入力!B12=\"\",\"\",(ﾃﾞｰﾀ入力!B12))","v":""},null,null,null,null,"-",null,null,"（内訳別紙）"]
["変更購入金額（税抜）：",null,null,null,null,null,null,{"$f":"IF(ﾃﾞｰﾀ入力!B13=\"\",\"\",(ﾃﾞｰﾀ入力!B13))","v":""},null,null,null,null,"-",null,null,"（内訳別紙）"]
["増・減額（税抜）：",null,null,null,null,null,null,{"$f":"IF(ﾃﾞｰﾀ入力!B14=\"\",\"\",(ﾃﾞｰﾀ入力!B14))","v":""},null,null,null,null,"-",null,null,"（内訳別紙）",null,null,null,null,null,null,null,null,"．　　．",null,null,null,"．　　．",null,null,null,"．　　．"]
[]
[]
["提出年月日",null,null,null,{"$f":"ﾃﾞｰﾀ入力!B1","v":"00:00:00"},null,null,null,null,null,null,null,null,null,null,null,null,null,null,null,null,null,null,null,null,null,"作業所長名",null,null,null,{"$f":"ﾃﾞｰﾀ入力!B3","v":0},null,null,null,"印"]
["発　　注　　者",null,null,null,{"$f":"ﾃﾞｰﾀ入力!B5","v":0},null,null,null,null,null,null,"工 事 科 目",null,null,null,null,null,null,"作 業 所 名",null,null,{"$f":"ﾃﾞｰﾀ入力!B2","v":0},null,null,null,null,"担　当　者",null,null,null,null,null,null,null,"印"]
["工　事　名　称",null,null,null,{"$f":"ﾃﾞｰﾀ入力!B6","v":0},null,null,null,null,null,null,null,null,null,null,null,null,null,null,null,null,null,null,null,null,"当初又は現納期",null,null,{"$f":"ﾃﾞｰﾀ入力!B16","v":"00:00:00"}]
["納　入　場　所",null,null,null,{"$f":"ﾃﾞｰﾀ入力!B8","v":0},null,null,null,null,null,null,null,null,null,null,"納入方法",null,null,null,{"$f":"ﾃﾞｰﾀ入力!B18","v":0},null,null,null,null,null,"変更納期",null,null,{"$f":"ﾃﾞｰﾀ入力!B17","v":"00:00:00"}]
["支　払　条　件",null,null,null,"① 毎月出来高払　",null,null,null,null,"毎月25日締切　翌月20日支払",null,null,null,null,null,null,null,null,null,{"$f":"\"現金　 \"&+AK14&+\"％　手形 　\"&+AL14&\"％　期日現金払　\"&+AM14&\"％　（サイト \"&ﾃﾞｰﾀ入力!$B$23&\"日）\"","v":"現金　 0％　手形 　0％　期日現金払　0％　（サイト 日）"},null,null,null,null,null,null,null,null,null,null,null,null,null,null,null,null,{"$f":"ﾃﾞｰﾀ入力!B22","v":0},{"$f":"ﾃﾞｰﾀ入力!B21","v":0},{"$f":"ﾃﾞｰﾀ入力!B20","v":0}]
[null,null,null,null,"② 完成一括払",null,null,null,null,"検収後月25日締切　翌月20日支払",null,null,null,null,null,null,null,null,null,{"$f":"\"現金　 \"&+AK15&+\"％　手形 　\"&+AL15&\"％　期日現金払　\"&+AM15&\"％　（サイト \"&ﾃﾞｰﾀ入力!$B$23&\"日）\"","v":"現金　 0％　手形 　0％　期日現金払　0％　（サイト 日）"},null,null,null,null,null,null,null,null,null,null,null,null,null,null,null,null,{"$f":"ﾃﾞｰﾀ入力!B22","v":0},{"$f":"ﾃﾞｰﾀ入力!B21","v":0},{"$f":"ﾃﾞｰﾀ入力!B20","v":0}]
["指定メーカー",null,null,null,{"$f":"ﾃﾞｰﾀ入力!E2","v":0},null,null,null,null,null,null,null,null,"製作工場・製品必要許認可・ＩＳＯ適用他",null,null,null,null,null,null,null,null,null,null,{"$f":"ﾃﾞｰﾀ入力!E3","v":0}]
["必要書類の添付",null,null,null,{"$f":"ﾃﾞｰﾀ入力!E4&\"・\"&ﾃﾞｰﾀ入力!E5&\"・\"&ﾃﾞｰﾀ入力!E6&\"・\"&ﾃﾞｰﾀ入力!E7","v":"・・・"}]
["下請先・工場検査の有無",null,null,null,null,null,{"$f":"ﾃﾞｰﾀ入力!E8","v":0},null,null,null,null,null,"時期　・　回転　・　検査方法",null,null,null,null,null,null,null,{"$f":"ﾃﾞｰﾀ入力!E9","v":0}]
[null,null,null,null,null,null,null,null,null,null,null,null,null,null,null,null,null,null,null,null,null,null,null,null,null,null,null,null,null,null,null,null,"確　認"]
[null,null,null,null,null,null,null,null,null,null,null,null,null,null,null,null,null,null,null,null,null,null,null,null,null,null,null,null,null,null,null,null,"総務部長"]
["特　記　事　項"]
[]
["契約不適合　　　責任期間",null,null,null,{"$f":"ﾃﾞｰﾀ入力!B26","v":0},null,null,null,null,null,"工事引き渡し後",null,null,null,null,{"$f":"IF(E23=\"無\",\"\",ﾃﾞｰﾀ入力!B27)","v":0},"年間",null,null,{"$f":"IF(E23=\"無\",\"\",ﾃﾞｰﾀ入力!B28)","v":"00:00:00"},null,null,null,null,null,"まで",null,null,null,null,null,null,"．　　．"]
["作業所長　→　工事部　→　社長　→  総務部長",null,null,null,null,null,null,null,null,null,null,null,null,null,null,null,null,null,null,null,null,null,null,null,null,null,null,null,null,null,null,null,null,null,null,"<2020.10.2改定>"]
[]
[]
[]
[]
[]
[]
[]
[]
[]
[]
[]
[]
[]
[]
[]
[]
[]
[]
[]
[]
[]
[]
[]
[]
[]
[]
[]
[]
[]
[]
[]
[]
[]
[]
[]
[]
[]
[]
[]
[]
[]
[]
[]
[]
[]
[]
[]
[]
[]
[]
[]
[]
[]
[]
[]
[]
[]
[]
[]
[]
[]
[]
[]
[]
[]
[]
[]
[]
[]
[]
[]
[]
[]
[]
[]
[]
[]
[]
[]
[]
[]
[]
[]
[]
[]
[]
[]
[]
[]
[]
[]
[]
[]
[]
[]
[]
[]
[]
[]
[]
[]
[]
[]
[]
[]
[]
[]
[]
[]
[]
[]
[]
[]
[]
[]
[]
[]
[]
[]
[]
[]
[]
[]
[]
[]
[]
[]
[]
[]
[]
[]
[]
[]
[]
[]
[]
[]
[]
[]
[]
[]
[]
[]
[]
[]
[]
[]
[]
[]
[]
[]
[]
[]
[]
[]
[]
[]
[]
[]
[]
[]
[]
[]
[]
[]
[]
[]
[]
[]
[]
[]
[]
[]
[]
[]
[]
[]
[]
[]
[]
[]
[]
[]
[]
[]
[]
[]
[]
[]
[]
[]
[]
[]
[]
[]
[]
[]
[]
[]
[]
[]
[]
[]
[]
[]
[]
[]
[]
[]
[]
[]
[]
[]
[]
[]
[]
[]
[]
[]
[]
[]
[]
[]
[]
[]
[]
[]
[]
[]
[]
[]
[]
[]
[]
[]
[]
[]
[]
[]
[]
[]
[]
[]
[]
[]
[]
[]
[]
[]
[]
[]
[]
[]
[]
[]
[]
[]
[]
[]
[]
[]
[]
[]
[]
[]
[]
[]
[]
[]
[]
[]
[]
[]
[]
[]
[]
[]
[]
[]
[]
[]
[]
[]
[]
[]
[]
[]
[]
[]
[]
[]
[]
[]
[]
[]
[]
[]
[]
[]
[]
[]
[]
[]
[]
[]
[]
[]
[]
[]
[]
[]
[]
[]
[]
[]
[]
[]
[]
[]
[]
[]
[]
[]
[]
[]
[]
[]
[]
[]
[]
[]
[]
[]
[]
[]
[]
[]
[]
[]
[]
[]
[]
[]
[]
[]
[]
[]
[]
[]
[]
[]
[]
[]
[]
[]
[]
[]
[]
[]
[]
[]
[]
[]
[]
[]
[]
[]
[]
[]
[]
[]
[]
[]
[]
[]
[]
[]
[]
[]
[]
[]
[]
[]
[]
[]
[]
[]
[]
[]
[]
[]
[]
[]
[]
[]
[]
[]
[]
[]
[]
[]
[]
[]
[]
[]
[]
[]
[]
[]
[]
[]
[]
[]
[]
[]
[]
[]
[]
[]
[]
[]
[]
[]
[]
[]
[]
[]
[]
[]
[]
[]
[]
[]
[]
[]
[]
[]
[]
[]
[]
[]
[]
[]
[]
[]
[]
[]
[]
[]
[]
[]
[]
[]
[]
[]
[]
[]
[]
[]
[]
[]
[]
[]
[]
[]
[]
[]
[]
[]
[]
[]
[]
[]
[]
[]
[]
[]
[]
[]
[]
[]
[]
[]
[]
[]
[]
[]
[]
[]
[]
[]
[]
[]
[]
[]
[]
[]
[]
[]
[]
[]
[]
[]
[]
[]
[]
[]
[]
[]
[]
[]
[]
[]
[]
[]
[]
[]
[]
[]
[]
[]
[]
[]
[]
[]
[]
[]
[]
[]
[]
[]
[]
[]
[]
[]
[]
[]
[]
[]
[null,null,null,null,null,null,null,null,null,null,null,null,null,null,null,null,null,null,null,null,null,null,null,null,null,null,null,null,null,null,null,null,null,null,null,null,null,null,null,null,null,null,null,null,null,null,null,null,null,null,null,null,null,null,null,null,null,null,null,null,null,"購買－１１（2001.11.25）"]
[null,null,null,null,null,null,null,null,null,null,null,null,null,null,null,null,null,null,null,null,null,null,null,null,null,null,null,null,null,null,null,null,null,"注　　　　文　　　　書"]
[null,null,null,null,null,null,null,null,null,null,null,null,null,null,null,null,null,null,null,null,null,null,null,null,null,null,null,null,null,null,null,null,null,null,null,null,null,null,null,null,null,null,null,null,null,null,null,null,null,null,null,null,null,null,null,null,null,null,null,null,null,null,null,null,null,null,null,null,"平成　　　年　　　月　　　日"]
[null,null,null,null,null,null,null,null,null,null,null,null,null,null,null,null,null,null,null,null,null,null,null,null,null,null,null,null,null,null,null,null,null,"〒",null,null,null,null,null,null,null,null,null,null,null,null,null,null,null,null,null,"〒　７４０－００４４"]
[null,null,null,null,null,null,null,null,null,null,null,null,null,null,null,null,null,null,null,null,null,null,null,null,null,null,null,null,null,null,null,null,null,"住所",null,null,null,null,null,null,null,null,null,null,null,null,null,null,null,null,null,"岩国市大字通津２３９６番地",null,null,null,null,null,null,null,null,null,"確認、承認"]
[null,null,null,null,null,null,null,null,null,null,null,null,null,null,null,null,null,null,null,null,null,null,null,null,null,null,null,null,null,null,null,null,null,"会社名",null,null,null,null,null,null,null,null,null,null,null,null,null,null,null,null,null,"勝井建設株式会社",null,null,null,null,null,null,null,null,null,"総務部長",null,null,null,"作成"]
[null,null,null,null,null,null,null,null,null,null,null,null,null,null,null,null,null,null,null,null,null,null,null,null,null,null,null,null,null,null,null,null,null,null,null,null,null,null,null,null,null,null,null,null,null,null,"御中",null,null,null,null,"電　話　０８２７（３８）１２３１　代表"]
[]
[null,null,null,null,null,null,null,null,null,null,null,null,null,null,null,null,null,null,null,null,null,null,null,null,null,null,null,null,null,null,null,null,null,null,null,null,null,null,null,null,null,null,null,null,null,null,null,null,null,null,null,null,null,null,null,null,null,null,null,null,null,"．　　．",null,null,null,"．　　．"]
[null,null,null,null,null,null,null,null,null,null,null,null,null,null,null,null,null,null,null,null,null,null,null,null,null,null,null,null,null,null,null,null,null,"下記の通り注文しますので、お引き受けの際は、請書に記名、捺印の上、１０日以内に返送下さい。"]
[null,null,null,null,null,null,null,null,null,null,null,null,null,null,null,null,null,null,null,null,null,null,null,null,null,null,null,null,null,null,null,null,null,"請書に外注工事特記事項（物品納入特記事項）が添付されている場合は、請書と特記事項の合わせ目に割印を忘れずに押印して下さい。"]
[null,null,null,null,null,null,null,null,null,null,null,null,null,null,null,null,null,null,null,null,null,null,null,null,null,null,null,null,null,null,null,null,null,"工事名称",null,null,null,null,null,null,null,null,null,null,null,null,null,null,null,null,"契約番号"]
[null,null,null,null,null,null,null,null,null,null,null,null,null,null,null,null,null,null,null,null,null,null,null,null,null,null,null,null,null,null,null,null,null,"工事場所",null,null,null,null,null,null,null,null,null,null,null,null,null,null,null,null,"工期･納期",null,null,null,null,null,"自"]
[null,null,null,null,null,null,null,null,null,null,null,null,null,null,null,null,null,null,null,null,null,null,null,null,null,null,null,null,null,null,null,null,null,"工事種別",null,null,null,null,null,null,null,null,null,null,null,null,null,null,null,null,null,null,null,null,null,null,"至"]
[null,null,null,null,null,null,null,null,null,null,null,null,null,null,null,null,null,null,null,null,null,null,null,null,null,null,null,null,null,null,null,null,null,"又は物品名",null,null,null,null,null,null,null,null,null,null,null,null,null,null,null,null,"受渡条件",null,null,null,null,null,"施　　　工　　・　　納　　　入"]
[null,null,null,null,null,null,null,null,null,null,null,null,null,null,null,null,null,null,null,null,null,null,null,null,null,null,null,null,null,null,null,null,null,"金　　　　　額",null,null,null,null,null,null,null,null,null,null,null,null,null,null,null,null,"精算条件",null,null,null,null,null,"実　　　測　　・　　実　　　納"]
[null,null,null,null,null,null,null,null,null,null,null,null,null,null,null,null,null,null,null,null,null,null,null,null,null,null,null,null,null,null,null,null,null,"（消費税額）",null,null,null,"（内消費税￥　　　　　　　　　　　　　　　　　）",null,null,null,null,null,null,null,null,null,null,null,null,"瑕 疵 担 保 期 間",null,null,null,null,null,"　平成　　　年　　　月　　　日まで"]
[null,null,null,null,null,null,null,null,null,null,null,null,null,null,null,null,null,null,null,null,null,null,null,null,null,null,null,null,null,null,null,null,null,"支払条件",null,"①","出来高支払",null,null,null,"毎月末締切り、出来高相当額の９０％を翌月２０日に支払い。完了の上、残高を消費税額とともに支払う。"]
[null,null,null,null,null,null,null,null,null,null,null,null,null,null,null,null,null,null,null,null,null,null,null,null,null,null,null,null,null,null,null,null,null,null,null,null,null,null,null,null,null,null,null,null,null,null,null,null,null,null,null,null,null,null,null,null,null,"但し",null,"現金　　　％手形　　　％（サイト　　日）"]
[null,null,null,null,null,null,null,null,null,null,null,null,null,null,null,null,null,null,null,null,null,null,null,null,null,null,null,null,null,null,null,null,null,null,null,"②","納入･完成一括払",null,null,null,"検収月末締切り、検収相当額の１００％を翌月２０日に全額支払う。",null,null,null,null,null,null,null,null,null,null,null,null,null,null,null,null,"但し",null,"現金　　　％手形　　　％（サイト　　日）"]
[null,null,null,null,null,null,null,null,null,null,null,null,null,null,null,null,null,null,null,null,null,null,null,null,null,null,null,null,null,null,null,null,null,null,null,"③　","その他　",null,null,null,null,null,null,null,null,null,null,null,null,null,null,null,null,null,null,null,null,"但し",null,"現金　　　％手形　　　％（サイト　　日）"]
[null,null,null,null,null,null,null,null,null,null,null,null,null,null,null,null,null,null,null,null,null,null,null,null,null,null,null,null,null,null,null,null,null,"内容･内訳",null,null,null,"　別紙明細書の通り。",null,null,null,null,null,null,null,null,null,null,null,null,"特記事項",null,null,null,null,null,"注文書・請書に記載のない条件については、外注工事特記事項、物品納入特記事項に定めるところによる。"]
[]
[null,null,null,null,null,null,null,null,null,null,null,null,null,null,null,null,null,null,null,null,null,null,null,null,null,null,null,null,null,null,null,null,null,null,null,null,null,null,null,null,null,null,null,null,null,null,null,null,null,null,null,null,null,null,null,null,null,null,null,null,null,"購買－１２（2001.11.25）"]
[null,null,null,null,null,null,null,null,null,null,null,null,null,null,null,null,null,null,null,null,null,null,null,null,null,null,null,null,null,null,null,null,null,"請　　　　　　　　書"]
[null,null,null,null,null,null,null,null,null,null,null,null,null,null,null,null,null,null,null,null,null,null,null,null,null,null,null,null,null,null,null,null,null,null,null,null,null,null,null,null,null,null,null,null,null,null,null,null,null,null,null,null,null,null,null,null,null,null,null,null,null,null,null,null,null,"確認、承認"]
[null,null,null,null,null,null,null,null,null,null,null,null,null,null,null,null,null,null,null,null,null,null,null,null,null,null,null,null,null,null,null,null,null,"勝井建設株式会社",null,null,null,null,null,null,null,null,null,null,null,null,"御中",null,null,null,null,null,null,null,null,null,null,null,null,null,null,null,null,null,null,"総務部長"]
[]
[null,null,null,null,null,null,null,null,null,null,null,null,null,null,null,null,null,null,null,null,null,null,null,null,null,null,null,null,null,null,null,null,null,"住 所"]
[null,null,null,null,null,null,null,null,null,null,null,null,null,null,null,null,null,null,null,null,null,null,null,null,null,null,null,null,null,null,null,null,null,null,null,null,null,null,null,null,null,null,null,null,null,null,null,null,null,null,null,null,null,null,null,null,null,null,null,null,null,null,null,null,null,"．　　．"]
[null,null,null,null,null,null,null,null,null,null,null,null,null,null,null,null,null,null,null,null,null,null,null,null,null,null,null,null,null,null,null,null,null,"会 社 名"]
[]
[null,null,null,null,null,null,null,null,null,null,null,null,null,null,null,null,null,null,null,null,null,null,null,null,null,null,null,null,null,null,null,null,null,null,null,null,null,null,null,null,null,null,null,"下記の通りお請けします。",null,null,null,null,null,null,null,null,null,null,null,null,null,null,null,null,null,null,"印紙",null,null,null,"印紙"]
[]
[null,null,null,null,null,null,null,null,null,null,null,null,null,null,null,null,null,null,null,null,null,null,null,null,null,null,null,null,null,null,null,null,null,"平成　　　年　　　月　　　日",null,null,null,null,null,null,null,null,null,null,null,null,null,null,null,null,null,null,null,null,null,null,null,null,null,null,null,"（印紙税額は￥　　　　　　円です）"]
[null,null,null,null,null,null,null,null,null,null,null,null,null,null,null,null,null,null,null,null,null,null,null,null,null,null,null,null,null,null,null,null,null,"工事名称",null,null,null,null,null,null,null,null,null,null,null,null,null,null,null,null,"契約番号"]
[null,null,null,null,null,null,null,null,null,null,null,null,null,null,null,null,null,null,null,null,null,null,null,null,null,null,null,null,null,null,null,null,null,"工事場所",null,null,null,null,null,null,null,null,null,null,null,null,null,null,null,null,"工期･納期",null,null,null,null,null,"自"]
[null,null,null,null,null,null,null,null,null,null,null,null,null,null,null,null,null,null,null,null,null,null,null,null,null,null,null,null,null,null,null,null,null,"工事種別",null,null,null,null,null,null,null,null,null,null,null,null,null,null,null,null,null,null,null,null,null,null,"至"]
[null,null,null,null,null,null,null,null,null,null,null,null,null,null,null,null,null,null,null,null,null,null,null,null,null,null,null,null,null,null,null,null,null,"又は物品名",null,null,null,null,null,null,null,null,null,null,null,null,null,null,null,null,"受渡条件",null,null,null,null,null,"施　　　工　　・　　納　　　入"]
[null,null,null,null,null,null,null,null,null,null,null,null,null,null,null,null,null,null,null,null,null,null,null,null,null,null,null,null,null,null,null,null,null,"金　　　　　額",null,null,null,null,null,null,null,null,null,null,null,null,null,null,null,null,"精算条件",null,null,null,null,null,"実　　　測　　・　　実　　　納"]
[null,null,null,null,null,null,null,null,null,null,null,null,null,null,null,null,null,null,null,null,null,null,null,null,null,null,null,null,null,null,null,null,null,"（消費税額）",null,null,null,"（内消費税￥　　　　　　　　　　　　　　　　　）",null,null,null,null,null,null,null,null,null,null,null,null,"瑕 疵 担 保 期 間",null,null,null,null,null,"　平成　　　年　　　月　　　日まで"]
[null,null,null,null,null,null,null,null,null,null,null,null,null,null,null,null,null,null,null,null,null,null,null,null,null,null,null,null,null,null,null,null,null,"支払条件",null,"①","出来高支払",null,null,null,"毎月末締切り、出来高相当額の９０％を翌月２０日に支払い。完了の上、残高を消費税額とともに支払う。"]
[null,null,null,null,null,null,null,null,null,null,null,null,null,null,null,null,null,null,null,null,null,null,null,null,null,null,null,null,null,null,null,null,null,null,null,null,null,null,null,null,null,null,null,null,null,null,null,null,null,null,null,null,null,null,null,null,null,"但し",null,"現金　　　％手形　　　％（サイト　　日）"]
[null,null,null,null,null,null,null,null,null,null,null,null,null,null,null,null,null,null,null,null,null,null,null,null,null,null,null,null,null,null,null,null,null,null,null,"②","納入･完成一括払",null,null,null,"検収月末締切り、検収相当額の１００％を翌月２０日に全額支払う。",null,null,null,null,null,null,null,null,null,null,null,null,null,null,null,null,"但し",null,"現金　　　％手形　　　％（サイト　　日）"]
[null,null,null,null,null,null,null,null,null,null,null,null,null,null,null,null,null,null,null,null,null,null,null,null,null,null,null,null,null,null,null,null,null,null,null,"③　","その他　",null,null,null,null,null,null,null,null,null,null,null,null,null,null,null,null,null,null,null,null,"但し",null,"現金　　　％手形　　　％（サイト　　日）"]
[null,null,null,null,null,null,null,null,null,null,null,null,null,null,null,null,null,null,null,null,null,null,null,null,null,null,null,null,null,null,null,null,null,"内容･内訳",null,null,null,"　別紙明細書の通り。",null,null,null,null,null,null,null,null,null,null,null,null,"特記事項",null,null,null,null,null,"注文書・請書に記載のない条件については、外注工事特記事項、物品納入特記事項に定めるところによる。"]
[]
[null,null,null,null,null,null,null,null,null,null,null,null,null,null,null,null,null,null,null,null,null,null,null,null,null,null,null,null,null,null,null,null,null,null,null,null,null,null,null,null,null,null,null,null,null,null,null,null,null,null,null,null,null,null,null,null,null,null,null,null,"購買－１３（2001.１１.25）"]
[null,null,null,null,null,null,null,null,null,null,null,null,null,null,null,null,null,null,null,null,null,null,null,null,null,null,null,null,null,null,null,null,null,null,null,null,null,null,null,null,null,null,null,null,null,null,null,null,null,null,null,null,null,null,null,null,null,null,null,null,"確認",null,null,null,"作成"]
[null,null,null,null,null,null,null,null,null,null,null,null,null,null,null,null,null,null,null,null,null,null,null,null,null,null,null,null,null,null,null,null,null,null,null,null,null,"外　注　工　事　特　記　事　項",null,null,null,null,null,null,null,null,null,null,null,null,null,null,null,null,null,null,null,null,null,null,"担当部長",null,null,null,"作業所長"]
[]
[]
[null,null,null,null,null,null,null,null,null,null,null,null,null,null,null,null,null,null,null,null,null,null,null,null,null,null,null,null,null,null,null,null,null,null,null,null,null,null,null,null,null,null,null,null,null,null,null,null,null,null,null,null,null,null,null,null,null,null,null,null,"．　　．",null,null,null,"．　　．"]
[]
[null,null,null,null,null,null,null,null,null,null,null,null,null,null,null,null,null,null,null,null,null,null,null,null,null,null,null,null,null,null,null,null,null,null,null,"１．","工事名称"]
[null,null,null,null,null,null,null,null,null,null,null,null,null,null,null,null,null,null,null,null,null,null,null,null,null,null,null,null,null,null,null,null,null,null,null,null,{"$f":"'[2]KPR-09-03　外注契約稟議書'!$G$11","v":{"$error":"#REF!"}}]
[null,null,null,null,null,null,null,null,null,null,null,null,null,null,null,null,null,null,null,null,null,null,null,null,null,null,null,null,null,null,null,null,null,null,null,"２．","工事場所"]
[null,null,null,null,null,null,null,null,null,null,null,null,null,null,null,null,null,null,null,null,null,null,null,null,null,null,null,null,null,null,null,null,null,null,null,null,{"$f":"'[2]KPR-09-03　外注契約稟議書'!$G$13","v":{"$error":"#REF!"}}]
[null,null,null,null,null,null,null,null,null,null,null,null,null,null,null,null,null,null,null,null,null,null,null,null,null,null,null,null,null,null,null,null,null,null,null,"３．","工期"]
[null,null,null,null,null,null,null,null,null,null,null,null,null,null,null,null,null,null,null,null,null,null,null,null,null,null,null,null,null,null,null,null,null,null,null,null,"着　　　工"]
[null,null,null,null,null,null,null,null,null,null,null,null,null,null,null,null,null,null,null,null,null,null,null,null,null,null,null,null,null,null,null,null,null,null,null,null,"完　　　成　",null,null,null,null,null,null,null,null,null,"部分工期　　",null,null,"（",null,null,null,null,null,null,"）"]
[]
[null,null,null,null,null,null,null,null,null,null,null,null,null,null,null,null,null,null,null,null,null,null,null,null,null,null,null,null,null,null,null,null,null,null,null,"（総　　則）"]
[null,null,null,null,null,null,null,null,null,null,null,null,null,null,null,null,null,null,null,null,null,null,null,null,null,null,null,null,null,null,null,null,null,null,null,"１．","勝井建設株式会社を甲、○○○○を乙とし、本工事における特記事項を定める。"]
[null,null,null,null,null,null,null,null,null,null,null,null,null,null,null,null,null,null,null,null,null,null,null,null,null,null,null,null,null,null,null,null,null,null,null,null,"工事の遂行にあたっては、「工事下請基本契約約款」並びに本特記仕様書による。"]
[]
[null,null,null,null,null,null,null,null,null,null,null,null,null,null,null,null,null,null,null,null,null,null,null,null,null,null,null,null,null,null,null,null,null,null,null,"（適用する品質システム）"]
[null,null,null,null,null,null,null,null,null,null,null,null,null,null,null,null,null,null,null,null,null,null,null,null,null,null,null,null,null,null,null,null,null,null,null,"２．","本工事では、ＩＳＯ　９００１（ＪＩＳ　Ｑ　９００１:２０００）に基づいた品質システムを適用する。"]
[]
[null,null,null,null,null,null,null,null,null,null,null,null,null,null,null,null,null,null,null,null,null,null,null,null,null,null,null,null,null,null,null,null,null,null,null,"（適用する仕様書、図面等）"]
[null,null,null,null,null,null,null,null,null,null,null,null,null,null,null,null,null,null,null,null,null,null,null,null,null,null,null,null,null,null,null,null,null,null,null,"３．","仕様書",null,"中国地方建設局土木工事　平成○年版（参考）"]
[null,null,null,null,null,null,null,null,null,null,null,null,null,null,null,null,null,null,null,null,null,null,null,null,null,null,null,null,null,null,null,null,null,null,null,null,null,null,"○○○○　○○○　　　○年度版"]
[null,null,null,null,null,null,null,null,null,null,null,null,null,null,null,null,null,null,null,null,null,null,null,null,null,null,null,null,null,null,null,null,null,null,null,null,"図　面　　　",null,"○○○○工事○○○○工区○○○○図（ 〃 ）"]
[null,null,null,null,null,null,null,null,null,null,null,null,null,null,null,null,null,null,null,null,null,null,null,null,null,null,null,null,null,null,null,null,null,null,null,null,null,null,"図面番号　○～○",null,null,null,null,null,null,null,null,null,null,null,null,null,null,null,"その他"]
[null,null,null,null,null,null,null,null,null,null,null,null,null,null,null,null,null,null,null,null,null,null,null,null,null,null,null,null,null,null,null,null,null,null,null,"（発注者からの指示事項）"]
[null,null,null,null,null,null,null,null,null,null,null,null,null,null,null,null,null,null,null,null,null,null,null,null,null,null,null,null,null,null,null,null,null,null,null,"４．","発注者からの指示事項"]
[]
[]
[]
[null,null,null,null,null,null,null,null,null,null,null,null,null,null,null,null,null,null,null,null,null,null,null,null,null,null,null,null,null,null,null,null,null,null,null,"（支給品）"]
[null,null,null,null,null,null,null,null,null,null,null,null,null,null,null,null,null,null,null,null,null,null,null,null,null,null,null,null,null,null,null,null,null,null,null,"５．","支給品の内容"]
[null,null,null,null,null,null,null,null,null,null,null,null,null,null,null,null,null,null,null,null,null,null,null,null,null,null,null,null,null,null,null,null,null,null,null,"品　名",null,null,null,null,null,null,null,null,null,"等級、規格、形式",null,null,null,null,null,null,null,null,null,"単　位",null,null,"数　量",null,null,"備　考"]
[]
[]
[]
[]
[]
[]
[]
[null,null,null,null,null,null,null,null,null,null,null,null,null,null,null,null,null,null,null,null,null,null,null,null,null,null,null,null,null,null,null,null,null,null,null,"（調達資機材）"]
[null,null,null,null,null,null,null,null,null,null,null,null,null,null,null,null,null,null,null,null,null,null,null,null,null,null,null,null,null,null,null,null,null,null,null,"６．","乙の調達する資機材"]
[null,null,null,null,null,null,null,null,null,null,null,null,null,null,null,null,null,null,null,null,null,null,null,null,null,null,null,null,null,null,null,null,null,null,null,"品　名",null,null,null,null,null,null,null,null,null,"等級、規格、形式",null,null,null,null,null,null,null,null,null,"単　位",null,null,"数　量",null,null,"必要書類、検査方法、出荷許可方法"]
[]
[]
[]
[]
[]
[]
[]
[]
[]
[null,null,null,null,null,null,null,null,null,null,null,null,null,null,null,null,null,null,null,null,null,null,null,null,null,null,null,null,null,null,null,null,null,null,null,"（提出書類）"]
[null,null,null,null,null,null,null,null,null,null,null,null,null,null,null,null,null,null,null,null,null,null,null,null,null,null,null,null,null,null,null,null,null,null,null,"７．","本工事遂行にあたり、乙は甲に対し、施工管理及び安全衛生管理に関わる以下の書類内で、甲が指示する書類を提出しなければならない。"]
[null,null,null,null,null,null,null,null,null,null,null,null,null,null,null,null,null,null,null,null,null,null,null,null,null,null,null,null,null,null,null,null,null,null,null,"番　号",null,"書　類　名",null,null,null,null,null,null,null,null,null,"適　用",null,"記　　　　事"]
[null,null,null,null,null,null,null,null,null,null,null,null,null,null,null,null,null,null,null,null,null,null,null,null,null,null,null,null,null,null,null,null,null,null,null,"①",null,"品質管理関連書類（成果表等）"]
[null,null,null,null,null,null,null,null,null,null,null,null,null,null,null,null,null,null,null,null,null,null,null,null,null,null,null,null,null,null,null,null,null,null,null,"②",null,"写真管理関連書類（工事記録写真等）"]
[null,null,null,null,null,null,null,null,null,null,null,null,null,null,null,null,null,null,null,null,null,null,null,null,null,null,null,null,null,null,null,null,null,null,null,"③",null,"出来形管理関連書類（成果表等）"]
[null,null,null,null,null,null,null,null,null,null,null,null,null,null,null,null,null,null,null,null,null,null,null,null,null,null,null,null,null,null,null,null,null,null,null,"④",null,"安全衛生関係書類"]
[null,null,null,null,null,null,null,null,null,null,null,null,null,null,null,null,null,null,null,null,null,null,null,null,null,null,null,null,null,null,null,null,null,null,null,"⑤",null,"その他甲の指示するもの"]
[]
[null,null,null,null,null,null,null,null,null,null,null,null,null,null,null,null,null,null,null,null,null,null,null,null,null,null,null,null,null,null,null,null,null,null,null,"８．","有償支給材"]
[null,null,null,null,null,null,null,null,null,null,null,null,null,null,null,null,null,null,null,null,null,null,null,null,null,null,null,null,null,null,null,null,null,null,null,null,"・","有償支給材に関しては、支給された材料費に相当する出来高を計上する。"]
[null,null,null,null,null,null,null,null,null,null,null,null,null,null,null,null,null,null,null,null,null,null,null,null,null,null,null,null,null,null,null,null,null,null,null,null,"・","有償支給材の支払金額からの控除方法は、"]
[null,null,null,null,null,null,null,null,null,null,null,null,null,null,null,null,null,null,null,null,null,null,null,null,null,null,null,null,null,null,null,null,null,null,null,null,null,"甲が現金払いの場合、乙の現金払い分から控除"]
[null,null,null,null,null,null,null,null,null,null,null,null,null,null,null,null,null,null,null,null,null,null,null,null,null,null,null,null,null,null,null,null,null,null,null,null,null,"甲が手形払いの場合、乙の手形払い分から控除するものとする。"]
[]
[null,null,null,null,null,null,null,null,null,null,null,null,null,null,null,null,null,null,null,null,null,null,null,null,null,null,null,null,null,null,null,null,null,null,null,"９.","　作業員休息所、資材置場及び工事関係会社が共同で使用するものは、乙の現場代理人（以下、現場責任者という。）が責任をもって清掃及び整理整頓し、かつ他の業者とトラブルのないように維持管理を行うこと。"]
[]
[]
[null,null,null,null,null,null,null,null,null,null,null,null,null,null,null,null,null,null,null,null,null,null,null,null,null,null,null,null,null,null,null,null,null,null,null,"１０.","　契約外工事が発生する場合、乙は事前に甲の承認を得た後、作業を行い、その精算は当該月に甲乙協議の上精算処理を行う。当該月以降の精算及び支払いはできないものとする。"]
[]
[]
[null,null,null,null,null,null,null,null,null,null,null,null,null,null,null,null,null,null,null,null,null,null,null,null,null,null,null,null,null,null,null,null,null,null,null,"（甲との打合わせ）"]
[null,null,null,null,null,null,null,null,null,null,null,null,null,null,null,null,null,null,null,null,null,null,null,null,null,null,null,null,null,null,null,null,null,null,null,"１１.","　乙の現場責任者は、甲の担当者と毎日指定された時間に翌日の作業及び安全に関する打合せを行い、作業員全員に周知徹底を図ること、また、定例打合せ・定例会議等には必ず出席すること。"]
[]
[]
[]
[]
[null,null,null,null,null,null,null,null,null,null,null,null,null,null,null,null,null,null,null,null,null,null,null,null,null,null,null,null,null,null,null,null,null,null,null,"１３.","乙の現場責任者は、次の事項を実施すること。"]
[null,null,null,null,null,null,null,null,null,null,null,null,null,null,null,null,null,null,null,null,null,null,null,null,null,null,null,null,null,null,null,null,null,null,null,null,"・","朝礼、ラジオ体操及び指差呼称訓練。"]
[null,null,null,null,null,null,null,null,null,null,null,null,null,null,null,null,null,null,null,null,null,null,null,null,null,null,null,null,null,null,null,null,null,null,null,null,"・","安全施工サイクル活動（朝礼、ＫＹミーティング、安全点検、作業中の監督・指導、作業打合せ、一斉清掃、終業時の確認、週間一斉片付け、安全衛生協議会、安全大会、職長会、定期点検・自主点検）の実施、記録及び参加。"]
[]
[null,null,null,null,null,null,null,null,null,null,null,null,null,null,null,null,null,null,null,null,null,null,null,null,null,null,null,null,null,null,null,null,null,null,null,null,"・","作業に先立ち、作業標準の作成、作業員の指導・教育。"]
[null,null,null,null,null,null,null,null,null,null,null,null,null,null,null,null,null,null,null,null,null,null,null,null,null,null,null,null,null,null,null,null,null,null,null,null,"・","現場持ち込み機械、器具の届け出、整備、点検及び記録。"]
[null,null,null,null,null,null,null,null,null,null,null,null,null,null,null,null,null,null,null,null,null,null,null,null,null,null,null,null,null,null,null,null,null,null,null,null,"・","その他、甲の指示する安全衛生行事。"]
[]
[null,null,null,null,null,null,null,null,null,null,null,null,null,null,null,null,null,null,null,null,null,null,null,null,null,null,null,null,null,null,null,null,null,null,null,"１４.","安全（保安）設備については、甲が資機材を無償貸与するが、安全設備の仮払い、維持管理については乙の負担とする。"]
[]
[null,null,null,null,null,null,null,null,null,null,null,null,null,null,null,null,null,null,null,null,null,null,null,null,null,null,null,null,null,null,null,null,null,null,null,"（就業時間）"]
[null,null,null,null,null,null,null,null,null,null,null,null,null,null,null,null,null,null,null,null,null,null,null,null,null,null,null,null,null,null,null,null,null,null,null,"１５.","　作業時間は原則として、８：００～１７：００とし、日曜日、祝日並びに現場で定めた休日を休みとする。但し、やむを得ない事情により就業時間、休日を変更する場合、乙は甲の承認を得なければならない。"]
[]
[]
[null,null,null,null,null,null,null,null,null,null,null,null,null,null,null,null,null,null,null,null,null,null,null,null,null,null,null,null,null,null,null,null,null,null,null,"（施工方法及び使用材料）"]
[null,null,null,null,null,null,null,null,null,null,null,null,null,null,null,null,null,null,null,null,null,null,null,null,null,null,null,null,null,null,null,null,null,null,null,"１６.","　工事の変更、承認事項について、乙の独断で甲の施主と直接折衝協議等を行ってはならない。また、施工にかかる全ての計画、実施については、甲・乙及び関係者を交えて協議する。乙の現場責任者との協議により決定した事項については、乙の総意とみなし、他の者がみだりに変更してはならない。変更が生じた場合は、改めて甲の現場代理人若しくは主任技術者に申し出を行い、再協議を行うこと。"]
[null,null,null,null,null,null,null,null,null,null,null,null,null,null,null,null,null,null,null,null,null,null,null,null,null,null,null,null,null,null,null,null,null,null,null,"　　　"]
[null,null,null,null,null,null,null,null,null,null,null,null,null,null,null,null,null,null,null,null,null,null,null,null,null,null,null,null,null,null,null,null,null,null,null,"　　　"]
[]
[null,null,null,null,null,null,null,null,null,null,null,null,null,null,null,null,null,null,null,null,null,null,null,null,null,null,null,null,null,null,null,null,null,null,null,"（沿道対策）"]
[null,null,null,null,null,null,null,null,null,null,null,null,null,null,null,null,null,null,null,null,null,null,null,null,null,null,null,null,null,null,null,null,null,null,null,"１７.","沿道対策上、甲の指示するものについて（油脂類、その他）、乙が外注すること。"]
[]
[null,null,null,null,null,null,null,null,null,null,null,null,null,null,null,null,null,null,null,null,null,null,null,null,null,null,null,null,null,null,null,null,null,null,null,"（検査及び引き渡し）"]
[null,null,null,null,null,null,null,null,null,null,null,null,null,null,null,null,null,null,null,null,null,null,null,null,null,null,null,null,null,null,null,null,null,null,null,"１８.","検査及び引き渡しに伴う、仕上げ、清掃等に必要な材料、労力は乙の負担とする。"]
[]
[null,null,null,null,null,null,null,null,null,null,null,null,null,null,null,null,null,null,null,null,null,null,null,null,null,null,null,null,null,null,null,null,null,null,null,"（その他）"]
[null,null,null,null,null,null,null,null,null,null,null,null,null,null,null,null,null,null,null,null,null,null,null,null,null,null,null,null,null,null,null,null,null,null,null,"１９.","関係諸官庁、施主及び甲の安全パトロール及び検査等に必要な材料、労力は乙の負担とする。"]
[null,null,null,null,null,null,null,null,null,null,null,null,null,null,null,null,null,null,null,null,null,null,null,null,null,null,null,null,null,null,null,null,null,null,null,null,null,null,null,null,null,null,null,null,null,null,null,null,null,null,null,null,null,null,null,null,"購買－１４（2001.11.25）"]
[null,null,null,null,null,null,null,null,null,null,null,null,null,null,null,null,null,null,null,null,null,null,null,null,null,null,null,null,null,null,null,null,null,"物　品　納　入　特　記　事　項"]
[]
[null,null,null,null,null,null,null,null,null,null,null,null,null,null,null,null,null,null,null,null,null,null,null,null,null,null,null,null,null,null,null,null,null,"（総　　則）"]
[null,null,null,null,null,null,null,null,null,null,null,null,null,null,null,null,null,null,null,null,null,null,null,null,null,null,null,null,null,null,null,null,null,"１．"," 勝井建設株式会社を（甲）、注文書記載納入会社を（乙）とし、注文書記載の物品納入における特記事項を定める。納入に際しては、本特記仕様書による。"]
[]
[]
[null,null,null,null,null,null,null,null,null,null,null,null,null,null,null,null,null,null,null,null,null,null,null,null,null,null,null,null,null,null,null,null,null,"（適用する品質システム）"]
[null,null,null,null,null,null,null,null,null,null,null,null,null,null,null,null,null,null,null,null,null,null,null,null,null,null,null,null,null,null,null,null,null,"２．","本物品の納入における適用品質システムは、ＩＳＯ　９００１（ＪＩＳ　Ｑ　９９０１：２０００）を適用する。"]
[]
[null,null,null,null,null,null,null,null,null,null,null,null,null,null,null,null,null,null,null,null,null,null,null,null,null,null,null,null,null,null,null,null,null,"(納品検査）"]
[null,null,null,null,null,null,null,null,null,null,null,null,null,null,null,null,null,null,null,null,null,null,null,null,null,null,null,null,null,null,null,null,null,"３．","　物品の注文書記載の納入場所（以下、納入場所という。）への納入に際しては、当社の指定する受入検査責任者の立会のもと、指定された場所、位置に保管、養生方法の指示を受け、納品検査を受けること。尚、当該受入検査は、合格後であっても不適合品が発見された場合の責を免じるものではない。"]
[]
[]
[]
[null,null,null,null,null,null,null,null,null,null,null,null,null,null,null,null,null,null,null,null,null,null,null,null,null,null,null,null,null,null,null,null,null,"（不適合の処置）"]
[null,null,null,null,null,null,null,null,null,null,null,null,null,null,null,null,null,null,null,null,null,null,null,null,null,null,null,null,null,null,null,null,null,"４．","　納入物品が、指定する図面、見積条件及び注文書の指示に適合しない場合は、甲の指示に従い所定期間内に乙の負担で実施すること。尚、乙が理由なく本注文を履行しない場合、又はこの期間内に履行不可能と認められる場合は、本注文を解約することがある。この場合これに生じる一切の損害は乙の負担とする。"]
[]
[]
[]
[null,null,null,null,null,null,null,null,null,null,null,null,null,null,null,null,null,null,null,null,null,null,null,null,null,null,null,null,null,null,null,null,null,"（所有権利）"]
[null,null,null,null,null,null,null,null,null,null,null,null,null,null,null,null,null,null,null,null,null,null,null,null,null,null,null,null,null,null,null,null,null,"５．","受入検査合格後、納入場所に搬入した物品の所有権は、その都度甲に帰属する。"]
[]
[null,null,null,null,null,null,null,null,null,null,null,null,null,null,null,null,null,null,null,null,null,null,null,null,null,null,null,null,null,null,null,null,null,"（精　　算）"]
[null,null,null,null,null,null,null,null,null,null,null,null,null,null,null,null,null,null,null,null,null,null,null,null,null,null,null,null,null,null,null,null,null,"６．","納入数量に、変更が生じた場合は実納入数量にて変更して精算をする。"]
[null,null,null,null,null,null,null,null,null,null,null,null,null,null,null,null,null,null,null,null,null,null,null,null,null,null,null,null,null,null,null,null,null,"１／２"]
[null,null,null,null,null,null,null,null,null,null,null,null,null,null,null,null,null,null,null,null,null,null,null,null,null,null,null,null,null,null,null,null,null,null,null,null,null,null,null,null,null,null,null,null,null,null,null,null,null,null,null,null,null,null,"購買－１４　物品納入特記事項"]
[null,null,null,null,null,null,null,null,null,null,null,null,null,null,null,null,null,null,null,null,null,null,null,null,null,null,null,null,null,null,null,null,null,"（瑕疵の担保及び期間）"]
[null,null,null,null,null,null,null,null,null,null,null,null,null,null,null,null,null,null,null,null,null,null,null,null,null,null,null,null,null,null,null,null,null,"７．","　甲がその注文者に負うべき瑕疵の担保及び期間について、乙より納入された物品が因で生じた瑕疵についての修補費用は乙の負担とする。尚、その期間は、甲が負うべき瑕疵の担保期間とする。"]
[]
[]
[null,null,null,null,null,null,null,null,null,null,null,null,null,null,null,null,null,null,null,null,null,null,null,null,null,null,null,null,null,null,null,null,null,"（その他）"]
[null,null,null,null,null,null,null,null,null,null,null,null,null,null,null,null,null,null,null,null,null,null,null,null,null,null,null,null,null,null,null,null,null,"８．","この特記事項に定めのない事項については、必要に応じて甲、乙協議のうえ決定する。"]
[]
[]
[]
[]
[]
[]
[]
[]
[]
[]
[]
[]
[]
[]
[]
[]
[]
[]
[null,null,null,null,null,null,null,null,null,null,null,null,null,null,null,null,null,null,null,null,null,null,null,null,null,null,null,null,null,null,null,null,null,"２／２"]
[]
[]
[]
[]
[]
[]
[]
[]
[]
[]
[]
[]
[]
[]
[]
[]
[]
[]
[]
[]
[]
[]
[]
[]
[]
[]
[]
[]
[]
[]
[]
[]
[]
[]
[]
[]
[]
[]
[]
[]
[]
[]
[]
[]
[]
[]
[]
[]
[]
[]
[]
[]
[]
[]
[]
[]
[]
[]
[]
[]
[]
[]
[]
[]
[]
[]
[]
[]
[]
[]
[]
[]
[]
[]
[]
[]
[]
[]
[]
[]
[]
[]
[]
[]
[]
[]
[]
[]
[]
[]
[]
[]
[]
[]
[]
[]
[]
[]
[]
[]
[]
[]
[]
[]
[]
[]
[]
[]
[]
[]
[]
[]
[]
[]
[]
[]
[]
[]
[]
[]
[]
[]
[]
[]
[]
[]
[]
[]
[]
[]
[]
[]
[]
[]
[]
[]
[]
[]
[]
[]
[]
[]
[]
[]
[]
[]
[]
[]
[]
[]
[]
[]
[]
[]
[]
[]
[]
[]
[]
[]
[]
[]
[]
[]
[]
[]
[]
[]
[]
[]
[]
[]
[]
[]
[]
[]
[]
[]
[]
[]
[]
[]
[null,null,null,null,null,null,null,null,null,null,null,null,null,null,null,null,null,null,null,null,null,null,null,null,null,null,null,null,null,null,null,null,null,"２／２"]
[null,null,null,null,null,null,null,null,null,null,"文書番号：購買－１６",null,null,null,null,null,null,null,null,null,"更新年月日",null,null,"平成 　　年  　月  　日"]
[null,null,null,null,null,null,null,null,null,null,"発行部門：設計担当部門",null,null,null,null,null,null,null,null,null,"管理部門",null,null,"土木部",null,null,null,null,null,"Ｎｏ．"]
[]
[]
[null,null,null,"所　在　地　",null,null,null,null,null,null,null,null,null,"電話番号",null,null,null,"主たる種目",null,null,null,null,null,"設計部門評価ランク",null,null,null,null,null,"記入"]
[null,null,null,null,null,null,null,null,null,null,null,null,null,null,null,null,null,null,null,null,null,null,null,"能力",null,"納期",null,"価格"]
[null,null,null,"今津町１－１５－２７",null,null,null,null,null,null,null,null,null,"22-5556",null,null,null,"開発行為の設計",null,null,null,null,null,"可・不可",null,"可・不可",null,"可・不可"]
[null,null,null,"御庄１－１１５－９",null,null,null,null,null,null,null,null,null,"46-0673",null,null,null,"地質調査・土質試験",null,null,null,null,null,"可・不可",null,"可・不可",null,"可・不可"]
[null,null,null,"御庄１－１１１－２",null,null,null,null,null,null,null,null,null,"46-0111",null,null,null,"測量調査設計",null,null,null,null,null,"可・不可",null,"可・不可",null,"可・不可"]
[null,null,null,"下松市葉山２－９０４－１６",null,null,null,null,null,null,null,null,null,"0833-46-4466",null,null,null,"法面調査設計",null,null,null,null,null,"可・不可",null,"可・不可",null,"可・不可"]
[null,null,null,"広島県広島市西区庚午南１－３５－２３",null,null,null,null,null,null,null,null,null,"082-273-6814",null,null,null,"下水管内調査、法面工設計",null,null,null,null,null,"可・不可",null,"可・不可",null,"可・不可"]
[null,null,null,"吉敷郡秋穂町東３５０２",null,null,null,null,null,null,null,null,null,"0839-84-2021",null,null,null,"プレキャストボックス設計",null,null,null,null,null,"可・不可",null,"可・不可",null,"可・不可"]
[null,null,null,"広島市中区大手町１－２－１",null,null,null,null,null,null,null,null,null,"082-244-5053",null,null,null,"地質調査・測量解析設計",null,null,null,null,null,"可・不可",null,"可・不可",null,"可・不可"]
[null,null,null,"山口市穂積町１－２",null,null,null,null,null,null,null,null,null,"0839-25-7489",null,null,null,"法面調査設計",null,null,null,null,null,"可・不可",null,"可・不可",null,"可・不可"]
[null,null,null,"徳山市若宮町１－２０",null,null,null,null,null,null,null,null,null,"0834-31-5525",null,null,null,"開発設計",null,null,null,null,null,"可・不可",null,"可・不可",null,"可・不可"]
[null,null,null,"錦見８－２８－１",null,null,null,null,null,null,null,null,null,"43-2243",null,null,null,"登記・測量",null,null,null,null,null,"可・不可",null,"可・不可",null,"可・不可"]
[null,null,null,"広島市中区鶴見町４－２２",null,null,null,null,null,null,null,null,null,"082-246-4422",null,null,null,"各種舗装設計",null,null,null,null,null,"可・不可",null,"可・不可",null,"可・不可"]
[null,null,null,"広島市南区京橋町１－２３　　         ",null,null,null,null,null,null,null,null,null,"082-261-1164",null,null,null,"仮設構造物設計",null,null,null,null,null,"可・不可",null,"可・不可",null,"可・不可"]
[null,null,null,"山口市赤妻町３－１　　　　",null,null,null,null,null,null,null,null,null,"　0839-22-8106",null,null,null,"法面調査設計",null,null,null,null,null,"可・不可",null,"可・不可",null,"可・不可",null,"左記１３業者評価実施"]
[]
[null,null,null,null,null,null,null,null,null,null,null,null,null,null,null,null,null,null,null,null,null,null,null,null,null,null,null,null,null,"平成１２年　４月２５日"]
[]
[]
[]
[]
[]
[]
[]
[null,null,null,null,null,null,null,null,null,null,null,null,null,null,null,null,null,null,null,null,null,null,null,null,null,null,null,null,null,null,null,null,null,"文書名：外　注　設　計　会　社　評　価　表（2001.11.25）",null,null,null,null,null,null,null,null,null,null,null,null,"文書番号：購買－１７"]
[null,null,null,null,null,null,null,null,null,null,null,null,null,null,null,null,null,null,null,null,null,null,null,null,null,null,null,null,null,null,null,null,null,null,null,null,null,null,null,null,null,null,null,null,null,null,"発行部門：品質保証部"]
[]
[null,null,null,null,null,null,null,null,null,null,null,null,null,null,null,null,null,null,null,null,null,null,null,null,null,null,null,null,null,null,null,null,null,"設計会社名"]
[null,null,null,null,null,null,null,null,null,null,null,null,null,null,null,null,null,null,null,null,null,null,null,null,null,null,null,null,null,null,null,null,null,"所　在　地",null,null,null,"〒"]
[null,null,null,null,null,null,null,null,null,null,null,null,null,null,null,null,null,null,null,null,null,null,null,null,null,null,null,null,null,null,null,null,null,"代 表 者 名",null,null,null,null,null,null,null,null,null,"電　話　番　号"]
[null,null,null,null,null,null,null,null,null,null,null,null,null,null,null,null,null,null,null,null,null,null,null,null,null,null,null,null,null,null,null,null,null,"資　本　金",null,null,null,null,null,null,null,null,null,"主要設計業務"]
[null,null,null,null,null,null,null,null,null,null,null,null,null,null,null,null,null,null,null,null,null,null,null,null,null,null,null,null,null,null,null,null,null,"担　当　者",null,null,null,null,null,null,null,null,null,"担当者連絡先"]
[]
[null,null,null,null,null,null,null,null,null,null,null,null,null,null,null,null,null,null,null,null,null,null,null,null,null,null,null,null,null,null,null,null,null,"評価方法",null,null,"一項目５点評価。有は、マイナス点。無は、プラス点。これを集計合計とする。"]
[null,null,null,null,null,null,null,null,null,null,null,null,null,null,null,null,null,null,null,null,null,null,null,null,null,null,null,null,null,null,null,null,null,null,"評　　価　　項　　目",null,null,null,null,null,null,null,null,null,null,null,null,"評　　価　　点"]
[null,null,null,null,null,null,null,null,null,null,null,null,null,null,null,null,null,null,null,null,null,null,null,null,null,null,null,null,null,null,null,null,null,"１","工程管理に問題はなかったか。",null,null,null,null,null,null,null,null,null,null,null,null,"有",null,null,"点","無",null,null,"点"]
[null,null,null,null,null,null,null,null,null,null,null,null,null,null,null,null,null,null,null,null,null,null,null,null,null,null,null,null,null,null,null,null,null,"２","設計能力に問題はなかったか。",null,null,null,null,null,null,null,null,null,null,null,null,"有",null,null,"点","無",null,null,"点"]
[null,null,null,null,null,null,null,null,null,null,null,null,null,null,null,null,null,null,null,null,null,null,null,null,null,null,null,null,null,null,null,null,null,"３","指示・要求事項の対応に問題はなかったか。",null,null,null,null,null,null,null,null,null,null,null,null,"有",null,null,"点","無",null,null,"点"]
[null,null,null,null,null,null,null,null,null,null,null,null,null,null,null,null,null,null,null,null,null,null,null,null,null,null,null,null,null,null,null,null,null,"４","積極的に取り組む姿勢がみられたか。",null,null,null,null,null,null,null,null,null,null,null,null,"有",null,null,"点","無",null,null,"点"]
[null,null,null,null,null,null,null,null,null,null,null,null,null,null,null,null,null,null,null,null,null,null,null,null,null,null,null,null,null,null,null,null,null,"５","問題発生時の対応に問題はなかったか。",null,null,null,null,null,null,null,null,null,null,null,null,"有",null,null,"点","無",null,null,"点"]
[null,null,null,null,null,null,null,null,null,null,null,null,null,null,null,null,null,null,null,null,null,null,null,null,null,null,null,null,null,null,null,null,null,"合　　　　計",null,null,null,null,null,null,null,null,null,null,null,null,null,null,null,null,null,null,{"$f":"-AW993-AW994-AW995-AW996-AW997+BA993+BA994+BA995+BA996+BA997","v":0},null,"点"]
[null,null,null,null,null,null,null,null,null,null,null,null,null,null,null,null,null,null,null,null,null,null,null,null,null,null,null,null,null,null,null,null,null,"評価ランク：",null,null,null,"評価点が(－)の場合取引不可",null,null,null,null,null,null,null,null,null,"取引可　・　取引不可"]
[null,null,null,null,null,null,null,null,null,null,null,null,null,null,null,null,null,null,null,null,null,null,null,null,null,null,null,null,null,null,null,null,null,"設計実績"]
[]
[]
[]
[]
[]
[]
[null,null,null,null,null,null,null,null,null,null,null,null,null,null,null,null,null,null,null,null,null,null,null,null,null,null,null,null,null,null,null,null,null,"部　門　名",null,null,null,"建築部　・　土木部",null,null,null,null,null,null,null,null,null,"承　　認",null,null,null,"作　　成"]
[null,null,null,null,null,null,null,null,null,null,null,null,null,null,null,null,null,null,null,null,null,null,null,null,null,null,null,null,null,null,null,null,null,"発　行　日",null,null,null,null,null,null,null,null,null,null,null,null,null,"部　　長",null,null,null,"設計担当責任者"]
[null,null,null,null,null,null,null,null,null,null,null,null,null,null,null,null,null,null,null,null,null,null,null,null,null,null,null,null,null,null,null,null,null,"管 理 番 号"]
[null,null,null,null,null,null,null,null,null,null,null,null,null,null,null,null,null,null,null,null,null,null,null,null,null,null,null,null,null,null,null,null,null,"設計担当者　→　設計担当部門長"]

{"sheet":"内訳","index":4,"n_rows":28,"n_cols":8,"rows_kept":28,"cut":false,"hidden":false,"merged":[[0,0,0,7]]}
["明　　　　　細　　　　　　書"]
["記　号","名　　　称","仕　様　・　規　格","数　量","単位","単　価","金　額","備　考"]
[]
[null,null,null,null,null,null,{"$f":"IF(F4=\"\",\"\",D4*F4)","v":""}]
[null,null,null,null,null,null,{"$f":"IF(F5=\"\",\"\",D5*F5)","v":""}]
[null,null,null,null,null,null,""]
[null,null,null,null,null,null,""]
[null,null,null,null,null,null,""]
[null,null,null,null,null,null,""]
[null,null,null,null,null,null,""]
[null,null,null,null,null,null,""]
[null,null,null,null,null,null,""]
[null,null,null,null,null,null,""]
[null,null,null,null,null,null,""]
[null,null,null,null,null,null,""]
[null,null,null,null,null,null,""]
[null,null,null,null,null,null,""]
[null,null,null,null,null,null,""]
[null,null,null,null,null,null,""]
[null,null,null,null,null,null,""]
[null,null,null,null,null,null,""]
[null,null,null,null,null,null,""]
[]
[]
[null,"値引き"]
[null,"合計",null,null,null,null,{"$f":"SUM(G3:G25)","v":0}]
[null,"消費税",null,10,"％",null,{"$f":"G26*0.1","v":0}]
[null,"総合計",null,null,null,null,{"$f":"SUM(G26:G27)","v":0}]

{"sheet":"変更内訳","index":5,"n_rows":101,"n_cols":12,"rows_kept":101,"cut":false,"hidden":false,"merged":[[86,11,86,12],[87,11,87,12],[88,11,88,12],[57,11,57,12],[58,11,58,12],[59,11,59,12],[60,11,60,12],[85,11,85,12],[79,11,79,12],[80,11,80,12],[40,11,40,12],[41,11,41,12],[46,11,46,12],[47,11,47,12],[48,11,48,12],[42,11,42,12],[43,11,43,12],[44,11,44,12],[45,11,45,12],[34,11,34,12],[35,11,35,12],[36,11,36,12],[37,11,37,12],[38,11,38,12],[39,11,39,12],[82,11,82,12],[83,11,83,12],[84,11,84,12],[98,11,98,12],[99,11,99,12],[100,11,100,12],[94,11,94,12],[95,11,95,12],[96,11,96,12],[97,11,97,12],[50,11,50,12],[52,11,52,12],[53,11,53,12],[92,11,92,12],[93,11,93,12],[61,11,61,12],[62,11,62,12],[91,11,91,12],[89,11,89,12],[90,11,90,12],[74,11,74,12],[75,11,75,12],[81,11,81,12],[76,11,76,12],[77,11,77,12],[78,11,78,12],[68,11,68,12],[69,11,69,12],[70,11,70,12],[71,11,71,12],[72,11,72,12],[73,11,73,12],[29,11,29,12],[30,11,30,12],[64,11,64,12],[65,11,65,12],[66,11,66,12],[67,11,67,12],[55,11,55,12],[56,11,56,12],[51,11,51,12],[49,11,49,12],[20,11,20,12],[21,11,21,12],[63,11,63,12],[54,11,54,12],[22,11,22,12],[24,11,24,12],[26,11,26,12],[27,11,27,12],[25,11,25,12],[28,11,28,12],[14,11,14,12],[15,11,15,12],[16,11,16,12],[17,11,17,12],[18,11,18,12],[19,11,19,12],[8,11,8,12],[9,11,9,12],[10,11,10,12],[11,11,11,12],[12,11,12,12],[13,11,13,12],[3,7,4,7],[3,10,4,10],[31,11,31,12],[32,11,32,12],[33,11,33,12],[0,1,0,12],[23,11,23,12],[5,11,5,12],[6,11,6,12],[7,11,7,12],[3,1,4,1],[3,2,4,2],[3,3,4,3],[3,6,4,6],[0,13,2,13],[1,11,1,12],[3,4,3,5],[3,8,3,9],[3,11,4,12],[3,13,4,13]]}
[null,"　明　　　細　　　書"]
[]
[]
[null,"記号","名称","仕様・規格","数　　　　　量",null,"単　位","単価","金　　　　　額",null,"増・減","備　　　　　考"]
[null,null,null,null,"当初","変更",null,null,"当初","変更"]
[null,null,null,null,null,null,null,null,{"$f":"IF(H6=\"\",\"\",E6*H6)","v":""},{"$f":"IF(H6=\"\",\"\",F6*H6)","v":""},{"$f":"IF(E6=\"\",\"\",J6-I6)","v":""}]
[null,null,null,null,null,null,null,null,{"$f":"IF(H7=\"\",\"\",E7*H7)","v":""},"",""]
[null,null,null,null,null,null,null,null,"","",""]
[null,null,null,null,null,null,null,null,"","",""]
[null,null,null,null,null,null,null,null,"","",""]
[null,null,null,null,null,null,null,null,"","",""]
[null,null,null,null,null,null,null,null,"","",""]
[null,null,null,null,null,null,null,null,"","",""]
[null,null,null,null,null,null,null,null,"","",""]
[null,null,null,null,null,null,null,null,"","",""]
[null,null,null,null,null,null,null,null,"","",""]
[null,null,null,null,null,null,null,null,"","",""]
[null,null,null,null,null,null,null,null,"","",""]
[null,null,null,null,null,null,null,null,"","",""]
[null,null,null,null,null,null,null,null,"","",""]
[null,null,null,null,null,null,null,null,"","",""]
[null,null,null,null,null,null,null,null,"","",""]
[null,null,null,null,null,null,null,null,"","",""]
[null,null,null,null,null,null,null,null,"","",""]
[null,null,null,null,null,null,null,null,"","",""]
[null,null,null,null,null,null,null,null,"","",""]
[null,null,null,null,null,null,null,null,"","",""]
[null,null,null,null,null,null,null,null,"","",""]
[null,null,null,null,null,null,null,null,"","",""]
[null,null,"合　計",null,null,null,null,null,{"$f":"SUM(I6:I29)","v":0},{"$f":"SUM(J6:J29)","v":0},{"$f":"J30-I30","v":0}]
[null,null,"端数調整",null,null,null,null,null,null,null,{"$f":"J31-I31","v":0}]
[null,null,"改め計",null,null,null,null,null,{"$f":"SUM(I30:I31)","v":0},{"$f":"SUM(J30:J31)","v":0},{"$f":"J32-I32","v":0}]
[null,null,"消費税",null,10,10,"％",null,{"$f":"I32*0.1","v":0},{"$f":"J32*0.1","v":0},{"$f":"J33-I33","v":0}]
[null,null,"総合計",null,null,null,null,null,{"$f":"SUM(I32:I33)","v":0},{"$f":"SUM(J32:J33)","v":0},{"$f":"J34-I34","v":0}]
[null,null,null,null,null,null,null,null,{"$f":"IF(H35=\"\",\"\",E35*H35)","v":""},{"$f":"IF(H35=\"\",\"\",F35*H35)","v":""},{"$f":"IF(E35=\"\",\"\",J35-I35)","v":""}]
[null,null,null,null,null,null,null,null,"","",""]
[null,null,null,null,null,null,null,null,"","",""]
[null,null,null,null,null,null,null,null,"","",""]
[null,null,null,null,null,null,null,null,"","",""]
[null,null,null,null,null,null,null,null,"","",""]
[null,null,null,null,null,null,null,null,"","",""]
[null,null,null,null,null,null,null,null,"","",""]
[null,null,null,null,null,null,null,null,"","",""]
[null,null,null,null,null,null,null,null,"","",""]
[null,null,null,null,null,null,null,null,"","",""]
[null,null,null,null,null,null,null,null,"","",""]
[null,null,null,null,null,null,null,null,"","",""]
[null,null,null,null,null,null,null,null,"","",""]
[null,null,null,null,null,null,null,null,"","",""]
[null,null,null,null,null,null,null,null,"","",""]
[null,null,null,null,null,null,null,null,"","",""]
[null,null,null,null,null,null,null,null,"","",""]
[null,null,null,null,null,null,null,null,"","",""]
[null,null,null,null,null,null,null,null,{"$f":"IF(H54=\"\",\"\",E54*H54)","v":""},{"$f":"IF(H54=\"\",\"\",F54*H54)","v":""},{"$f":"IF(E54=\"\",\"\",J54-I54)","v":""}]
[null,null,null,null,null,null,null,null,"","",""]
[null,null,null,null,null,null,null,null,"","",""]
[null,null,null,null,null,null,null,null,"","",""]
[null,null,null,null,null,null,null,null,"","",""]
[null,null,null,null,null,null,null,null,"","",""]
[null,null,null,null,null,null,null,null,"","",""]
[null,null,null,null,null,null,null,null,"","",""]
[null,null,null,null,null,null,null,null,"","",""]
[null,null,null,null,null,null,null,null,"","",""]
[null,null,null,null,null,null,null,null,"","",""]
[null,null,null,null,null,null,null,null,"","",""]
[null,null,null,null,null,null,null,null,"","",""]
[null,null,null,null,null,null,null,null,"","",""]
[null,null,null,null,null,null,null,null,"","",""]
[null,null,null,null,null,null,null,null,"","",""]
[null,null,null,null,null,null,null,null,"","",""]
[null,null,null,null,null,null,null,null,"","",""]
[null,null,null,null,null,null,null,null,"","",""]
[null,null,null,null,null,null,null,null,"","",""]
[null,null,null,null,null,null,null,null,"","",""]
[null,null,null,null,null,null,null,null,"","",""]
[null,null,null,null,null,null,null,null,"","",""]
[null,null,null,null,null,null,null,null,"","",""]
[null,null,null,null,null,null,null,null,"","",""]
[null,null,null,null,null,null,null,null,"","",""]
[null,null,null,null,null,null,null,null,"","",""]
[null,null,null,null,null,null,null,null,"","",""]
[null,null,null,null,null,null,null,null,"","",""]
[null,null,null,null,null,null,null,null,"","",""]
[null,null,null,null,null,null,null,null,"","",""]
[null,null,null,null,null,null,null,null,"","",""]
[null,null,null,null,null,null,null,null,"","",""]
[null,null,null,null,null,null,null,null,"","",""]
[null,null,null,null,null,null,null,null,"","",""]
[null,null,null,null,null,null,null,null,"","",""]
[null,null,null,null,null,null,null,null,"","",""]
[null,null,null,null,null,null,null,null,"","",""]
[null,null,null,null,null,null,null,null,"","",""]
[null,null,null,null,null,null,null,null,"","",""]
[null,null,null,null,null,null,null,null,"","",""]
[null,null,null,null,null,null,null,null,"","",""]
[null,null,null,null,null,null,null,null,"","",""]
[null,null,null,null,null,null,null,null,"","",""]
[null,null,null,null,null,null,null,null,"","",""]
[null,null,null,null,null,null,null,null,"","",""]
[null,null,null,null,null,null,null,null,"","",""]
[null,null,null,null,null,null,null,null,"","",""]

{"sheet":"注文書","index":6,"n_rows":58,"n_cols":40,"rows_kept":58,"cut":false,"hidden":false,"merged":[[49,1,49,4],[56,1,56,4],[50,2,50,36],[51,21,51,30],[52,1,52,9],[53,2,54,36],[38,1,38,4],[39,2,40,36],[42,1,42,5],[43,2,44,36],[46,1,46,5],[47,2,47,36],[28,24,28,31],[29,1,29,31],[31,1,31,3],[32,2,33,36],[35,1,35,7],[36,2,36,36],[19,4,19,7],[19,23,19,24],[19,25,19,36],[20,4,20,7],[21,1,22,4],[21,18,22,23],[21,24,22,36],[16,1,16,4],[16,5,16,17],[16,18,16,23],[16,24,16,31],[16,32,16,33],[17,1,20,2],[17,3,18,3],[17,4,18,7],[18,23,18,24],[18,25,18,36],[13,5,14,17],[14,1,14,4],[15,1,15,4],[15,5,15,17],[15,18,15,23],[15,24,15,36],[10,1,10,36],[11,1,11,4],[11,5,11,17],[11,18,11,23],[11,24,11,36],[12,1,12,4],[12,5,12,17],[12,18,14,23],[12,24,14,36],[13,1,13,4],[5,33,5,36],[6,14,6,15],[6,19,6,26],[8,29,8,32],[8,33,8,36],[9,1,9,24],[4,19,4,26],[4,29,4,32],[5,1,5,2],[5,3,6,13],[5,19,5,26],[5,29,5,32],[59,1,60,35],[57,2,57,30],[0,29,0,36],[1,1,1,36],[2,31,2,36],[3,1,3,2],[3,3,3,15],[3,19,3,25],[4,1,4,2],[4,3,4,15]]}
[]
[null,"注　　　　文　　　　書"]
[]
[null,"〒",null,{"$f":"ﾃﾞｰﾀ入力!B33","v":{"$error":"#N/A"}},null,null,null,null,null,null,null,null,null,null,null,null,null,null,null,"〒　７４０－００４４"]
[null,"住所",null,{"$f":"ﾃﾞｰﾀ入力!B34","v":{"$error":"#N/A"}},null,null,null,null,null,null,null,null,null,null,null,null,null,null,null,"山口県岩国市通津２３９６番地",null,null,null,null,null,null,null,null,null,"確認、承認"]
[null,"会社名",null,{"$f":"ﾃﾞｰﾀ入力!B10","v":0},null,null,null,null,null,null,null,null,null,null,null,null,null,null,null,"勝井建設株式会社",null,null,null,null,null,null,null,null,null,"総務部長",null,null,null,"作成"]
[null,null,null,null,null,null,null,null,null,null,null,null,null,null,"御中",null,null,null,null,"電　話　０８２７（３８）１２３１　代表"]
[]
[null,null,null,null,null,null,null,null,null,null,null,null,null,null,null,null,null,null,null,null,null,null,null,null,null,null,null,null,null,"．　　．",null,null,null,"．　　．"]
[null,"下記の通り注文しますので、お引き受けの際は、請書に記名、捺印の上、１０日以内に返送下さい。"]
[null,"なお、請書の製本テープの継ぎ目のところ（表紙と裏紙の双方）に割印を忘れずに押印して下さい。"]
[null,"工事名称",null,null,null,{"$f":"ﾃﾞｰﾀ入力!B6","v":0},null,null,null,null,null,null,null,null,null,null,null,null,"現場名",null,null,null,null,null,{"$f":"ﾃﾞｰﾀ入力!B2","v":0}]
[null,"納入場所",null,null,null,{"$f":"ﾃﾞｰﾀ入力!B8","v":0},null,null,null,null,null,null,null,null,null,null,null,null,"納期",null,null,null,null,null,{"$f":"ﾃﾞｰﾀ入力!B16","v":"00:00:00"}]
[null,"工事種別",null,null,null,{"$f":"ﾃﾞｰﾀ入力!B11","v":0}]
[null,"又は物品名"]
[null,"金　　　　　額",null,null,null,{"$f":"\"￥\"&+DBCS(FIXED(ROUND(ﾃﾞｰﾀ入力!B12*1.1,0),0))&+\" －　　\"","v":"￥０ －　　"},null,null,null,null,null,null,null,null,null,null,null,null,"納入方法",null,null,null,null,null,{"$f":"ﾃﾞｰﾀ入力!B18","v":0}]
[null,"（消費税額）",null,null,null,{"$f":"\"（内消費税￥\"&+DBCS(FIXED(ROUND(ﾃﾞｰﾀ入力!B12*0.1,0),0))&+\" －　）　　\"","v":"（内消費税￥０ －　）　　"},null,null,null,null,null,null,null,null,null,null,null,null,"契約不適合責任期間",null,null,null,null,null,{"$f":"IF(ﾃﾞｰﾀ入力!B26=\"無\",\"無　　　\",ﾃﾞｰﾀ入力!B28)","v":"00:00:00"},null,null,null,null,null,null,null,{"$f":"IF(OR(ﾃﾞｰﾀ入力!B27=\"無\",ﾃﾞｰﾀ入力!B26=\"無\"),\"\",\"まで\")","v":"まで"}]
[null,"支払条件",null,"①","出来高支払",null,null,null,"毎月25日締切り、出来高相当額の９０％を翌月２０日に支払い。完了の上、残高を消費税額とともに支払う。",null,null,null,null,null,null,null,null,null,null,null,null,null,null,null,null,null,null,null,null,null,null,null,null,null,null,null,null,{"$f":"ﾃﾞｰﾀ入力!$B$24","v":0}]
[null,null,null,null,null,null,null,null,null,null,null,null,null,null,null,null,null,null,null,null,null,null,null,"但し",null,{"$f":"\"現金 \"&+AL19&+\"％　手形 \"&+AM19&\"％　期日現金払\"&+AN19&\"％（サイト \"&ﾃﾞｰﾀ入力!$B$23&\"日）\"","v":"現金 0％　手形 0％　期日現金払0％（サイト 日）"},null,null,null,null,null,null,null,null,null,null,null,{"$f":"ﾃﾞｰﾀ入力!$B$22","v":0},{"$f":"ﾃﾞｰﾀ入力!$B$21","v":0},{"$f":"ﾃﾞｰﾀ入力!$B$20","v":0}]
[null,null,null,"②","納入･完成一括払",null,null,null,"検収月25日締切り、検収相当額の１００％を翌月２０日に全額支払う。",null,null,null,null,null,null,null,null,null,null,null,null,null,null,"但し",null,{"$f":"\"現金 \"&+AL20&+\"％　手形 \"&+AM20&\"％　期日現金払\"&+AN20&\"％（サイト \"&ﾃﾞｰﾀ入力!$B$23&\"日）\"","v":"現金 0％　手形 0％　期日現金払0％（サイト 日）"},null,null,null,null,null,null,null,null,null,null,null,{"$f":"ﾃﾞｰﾀ入力!$B$22","v":0},{"$f":"ﾃﾞｰﾀ入力!$B$21","v":0},{"$f":"ﾃﾞｰﾀ入力!$B$20","v":0}]
[null,null,null,null,"※",null,null,null,"支払いの際に安全協力会費として支払いの０．１％を相殺とし、振込に掛かる手数料は下請負人負担とする。"]
[null,"内容･内訳",null,null,null,"　別紙明細書の通り。",null,null,null,null,null,null,null,null,null,null,null,null,"特記事項",null,null,null,null,null,"注文書・請書に記載のない条件については、外注工事特記事項、物品納入特記事項に定めるところによる。"]
[]
[]
[]
[]
[]
[]
[]
[null,"物　品　納　入　特　記　事　項"]
[]
[null,"（総　　則）"]
[null,"１．",{"$f":"\" 勝井建設株式会社を元請負人、\"&ﾃﾞｰﾀ入力!$B$10&\"を下請負人とし、注文書記載の物品納入における特記事項を定める。納入に際しては、本特記仕様書による。\"","v":" 勝井建設株式会社を元請負人、を下請負人とし、注文書記載の物品納入における特記事項を定める。納入に際しては、本特記仕様書による。"}]
[]
[]
[null,"（適用する品質システム）"]
[null,"２．","本物品の納入では、ISO 9001：2015（品質）、ISO 14001：2015（環境）、ＩＳＯ 45001：2018（労働安全衛生）に基づいたマネジメントシステムを適用する。"]
[]
[null,"(納品検査）"]
[null,"３．","物品の注文書記載の納入場所（以下、納入場所という。）への納入に際しては、当社の指定する受入検査責任者の立会のもと、指定された場所、位置に\n保管、養生方法の指示を受け、納品検査を受けること。尚、当該受入検査は、合格後であっても不適合品が発見された場合の責を免じるものではない。"]
[]
[]
[null,"（不適合の処置）"]
[null,"４．","納入物品が、指定する図面、見積条件及び注文書の指示に適合しない場合は、元請負人の指示に従い所定期間内に下請負人の負担で実施すること。\n尚、下請負人が理由なく本注文を履行しない場合、又はこの期間内に履行不可能と認められる場合は、本注文を解約することがある。\nこの場合これに生じる一切の損害は下請負人の負担とする。"]
[]
[]
[null,"（所有権利）"]
[null,"５．","受入検査合格後、納入場所に搬入した物品の所有権は、その都度元請負人に帰属する。"]
[]
[null,"（精　　算）"]
[null,"６．","納入数量に、変更が生じた場合は実納入数量にて変更して精算をする。"]
[]
[null,"（契約不適合責任期間）"]
[null,"７．","元請負人がその注文者に負うべき契約不適合責任期間について、下請負人より納入された物品が契約の内容に適合しないものについての修補費用は\n下請負人の負担とする。尚、その期間は、元請負人が負うべき契約不適合責任期間とする。"]
[]
[]
[null,"（その他）"]
[null,"８．","この特記事項に定めのない事項については、必要に応じて元請負人、下請負人協議のうえ決定する。　　　",null,null,null,null,null,null,null,null,null,null,null,null,null,null,null,null,null,null,null,null,null,null,null,null,null,null,null,null,null,null,null,null,null,"<2020.10.2改定>"]

{"sheet":"請書","index":7,"n_rows":58,"n_cols":38,"rows_kept":58,"cut":false,"hidden":false,"merged":[[39,2,40,36],[42,1,42,5],[29,1,29,31],[31,1,31,3],[32,2,33,36],[35,1,35,7],[38,1,38,4],[36,2,36,36],[0,29,0,36],[1,1,1,36],[2,33,2,36],[3,1,3,13],[3,33,3,36],[3,14,3,15],[2,1,2,13],[28,24,28,31],[5,4,5,13],[6,33,6,36],[7,1,7,3],[7,4,7,13],[5,1,5,3],[9,11,9,26],[9,30,9,31],[9,34,9,35],[11,1,11,8],[11,29,11,32],[11,35,11,36],[11,33,11,34],[13,1,13,4],[13,5,13,17],[12,18,12,23],[12,24,12,36],[13,18,15,23],[13,24,15,36],[17,24,17,31],[14,1,14,4],[14,5,15,17],[12,1,12,4],[12,5,12,17],[15,1,15,4],[20,23,20,24],[20,25,20,36],[17,32,17,33],[16,1,16,4],[16,5,16,17],[16,18,16,23],[16,24,16,36],[17,1,17,4],[17,5,17,17],[17,18,17,23],[22,1,23,4],[22,18,23,23],[22,24,23,36],[18,1,21,2],[18,3,19,3],[21,4,21,7],[19,23,19,24],[19,25,19,36],[18,4,19,7],[20,4,20,7],[52,1,52,9],[53,2,54,36],[56,1,56,4],[57,2,57,30],[43,2,44,36],[46,1,46,5],[47,2,47,36],[49,1,49,4],[50,2,50,36],[51,21,51,30]]}
[]
[null,"請　　　　　　　　書"]
[null,null,null,null,null,null,null,null,null,null,null,null,null,null,null,null,null,null,null,null,null,null,null,null,null,null,null,null,null,null,null,null,null,"確認、承認"]
[null,"勝井建設株式会社",null,null,null,null,null,null,null,null,null,null,null,null,"御中",null,null,null,null,null,null,null,null,null,null,null,null,null,null,null,null,null,null,"総務部長"]
[]
[null,"住 所"]
[null,null,null,null,null,null,null,null,null,null,null,null,null,null,null,null,null,null,null,null,null,null,null,null,null,null,null,null,null,null,null,null,null,"．　　．"]
[null,"会 社 名"]
[]
[null,null,null,null,null,null,null,null,null,null,null,"下記の通りお請けします。",null,null,null,null,null,null,null,null,null,null,null,null,null,null,null,null,null,null,"印紙",null,null,null,"印紙"]
[]
["日付入力→",{"$f":"注文書!AF3","v":"00:00:00"},null,null,null,null,null,null,null,null,null,null,null,null,null,null,null,null,null,null,null,null,null,null,null,null,null,null,null,"（印紙税額は￥　　　　　　",null,null,null,{"$f":"[3]稟議書ﾃﾞｰﾀ!$C$12","v":0},null,"円です）"]
[null,"工事名称",null,null,null,{"$f":"注文書!F12","v":0},null,null,null,null,null,null,null,null,null,null,null,null,"現場名",null,null,null,null,null,{"$f":"注文書!Y12","v":0}]
[null,"納入場所",null,null,null,{"$f":"注文書!F13","v":0},null,null,null,null,null,null,null,null,null,null,null,null,"納期",null,null,null,null,null,{"$f":"注文書!Y13","v":"00:00:00"}]
[null,"工事種別",null,null,null,{"$f":"注文書!F14","v":0}]
[null,"又は物品名"]
[null,"金　　　　　額",null,null,null,{"$f":"注文書!F16","v":"￥０ －　　"},null,null,null,null,null,null,null,null,null,null,null,null,"納入方法",null,null,null,null,null,{"$f":"ﾃﾞｰﾀ入力!B18","v":0}]
[null,"（消費税額）",null,null,null,{"$f":"注文書!F17","v":"（内消費税￥０ －　）　　"},null,null,null,null,null,null,null,null,null,null,null,null,"契約不適合責任期間",null,null,null,null,null,{"$f":"注文書!Y17","v":"00:00:00"},null,null,null,null,null,null,null,{"$f":"注文書!AG17","v":"まで"}]
[null,"支払条件",null,"①","出来高支払",null,null,null,"毎月25日締切り、出来高相当額の９０％を翌月２０日に支払い。完了の上、残高を消費税額とともに支払う。",null,null,null,null,null,null,null,null,null,null,null,null,null,null,null,null,null,null,null,null,null,null,null,null,null,null,null,null,{"$f":"注文書!AL18","v":0}]
[null,null,null,null,null,null,null,null,null,null,null,null,null,null,null,null,null,null,null,null,null,null,null,"但し",null,{"$f":"注文書!Z19","v":"現金 0％　手形 0％　期日現金払0％（サイト 日）"}]
[null,null,null,"②","納入･完成一括払",null,null,null,"検収月25日締切り、検収相当額の１００％を翌月２０日に全額支払う。",null,null,null,null,null,null,null,null,null,null,null,null,null,null,"但し",null,{"$f":"注文書!Z20","v":"現金 0％　手形 0％　期日現金払0％（サイト 日）"}]
[null,null,null,null,"※",null,null,null,"支払いの際に安全協力会費として支払いの０．１％を相殺とし、振込に掛かる手数料は下請負人負担とする。"]
[null,"内容･内訳",null,null,null,"　別紙明細書の通り。",null,null,null,null,null,null,null,null,null,null,null,null,"特記事項",null,null,null,null,null,"注文書２・請書に記載のない条件については、外注工事特記事項、物品納入特記事項に定めるところによる。"]
[]
[]
[]
[]
[]
[]
[null,"物　品　納　入　特　記　事　項"]
[]
[null,"（総　　則）"]
[null,"１．",{"$f":"\" 勝井建設株式会社を元請負人、\"&ﾃﾞｰﾀ入力!$B$10&\"を下請負人とし、注文書記載の物品納入における特記事項を定める。納入に際しては、本特記仕様書による。\"","v":" 勝井建設株式会社を元請負人、を下請負人とし、注文書記載の物品納入における特記事項を定める。納入に際しては、本特記仕様書による。"}]
[]
[]
[null,"（適用する品質システム）"]
[null,"２．","本物品の納入では、ISO 9001：2015（品質）、ISO 14001：2015（環境）、ＩＳＯ 45001：2018（労働安全衛生）に基づいたマネジメントシステムを適用する。"]
[]
[null,"(納品検査）"]
[null,"３．","物品の注文書記載の納入場所（以下、納入場所という。）への納入に際しては、当社の指定する受入検査責任者の立会のもと、指定された場所、位置に\n保管、養生方法の指示を受け、納品検査を受けること。尚、当該受入検査は、合格後であっても不適合品が発見された場合の責を免じるものではない。"]
[]
[]
[null,"（不適合の処置）"]
[null,"４．","納入物品が、指定する図面、見積条件及び注文書の指示に適合しない場合は、元請負人の指示に従い所定期間内に下請負人の負担で実施すること。\n尚、下請負人が理由なく本注文を履行しない場合、又はこの期間内に履行不可能と認められる場合は、本注文を解約することがある。\nこの場合これに生じる一切の損害は下請負人の負担とする。"]
[]
[]
[null,"（所有権利）"]
[null,"５．","受入検査合格後、納入場所に搬入した物品の所有権は、その都度元請負人に帰属する。"]
[]
[null,"（精　　算）"]
[null,"６．","納入数量に、変更が生じた場合は実納入数量にて変更して精算をする。"]
[]
[null,"（契約不適合責任期間）"]
[null,"７．","元請負人がその注文者に負うべき契約不適合責任期間について、下請負人より納入された物品が契約の内容に適合しないものについての修補費用は\n下請負人の負担とする。尚、その期間は、元請負人が負うべき契約不適合責任期間とする。"]
[]
[]
[null,"（その他）"]
[null,"８．","この特記事項に定めのない事項については、必要に応じて元請負人、下請負人協議のうえ決定する。　　　",null,null,null,null,null,null,null,null,null,null,null,null,null,null,null,null,null,null,null,null,null,null,null,null,null,null,null,null,null,null,null,null,null,"<2020.10.2改定>"]

{"sheet":"注文書 (変更用)","index":8,"n_rows":58,"n_cols":40,"rows_kept":58,"cut":false,"hidden":false,"merged":[[49,1,49,4],[56,1,56,4],[50,2,50,36],[51,21,51,30],[52,1,52,9],[53,2,54,36],[38,1,38,4],[39,2,40,36],[42,1,42,5],[43,2,44,36],[46,1,46,5],[47,2,47,36],[28,24,28,31],[29,1,29,31],[31,1,31,3],[32,2,33,36],[35,1,35,7],[36,2,36,36],[19,4,19,7],[19,23,19,24],[19,25,19,36],[20,4,20,7],[21,1,22,4],[21,18,22,23],[21,24,22,36],[16,1,16,4],[16,5,16,17],[16,18,16,23],[16,24,16,31],[16,32,16,33],[17,1,20,2],[17,3,18,3],[17,4,18,7],[18,23,18,24],[18,25,18,36],[13,5,14,17],[14,1,14,4],[15,1,15,4],[15,5,15,17],[15,18,15,23],[15,24,15,36],[10,1,10,36],[11,1,11,4],[11,5,11,17],[11,18,11,23],[11,24,11,36],[12,1,12,4],[12,5,12,17],[12,18,14,23],[12,24,14,36],[13,1,13,4],[5,33,5,36],[6,14,6,15],[6,19,6,26],[8,29,8,32],[8,33,8,36],[9,1,9,24],[4,19,4,26],[4,29,4,32],[5,1,5,2],[5,3,6,13],[5,19,5,26],[5,29,5,32],[57,2,57,30],[0,2,0,11],[0,29,0,36],[1,1,1,36],[2,31,2,36],[3,1,3,2],[3,3,3,15],[3,19,3,25],[4,1,4,2],[4,3,4,15]]}
[null,null,"変更契約"]
[null,"注　　　　文　　　　書"]
[null,null,null,null,null,null,null,null,null,null,null,null,null,null,null,null,null,null,null,null,null,null,null,null,null,null,null,null,null,null,null,null,null,null,null,null,null,"←日付入力"]
[null,"〒",null,{"$f":"ﾃﾞｰﾀ入力!B33","v":{"$error":"#N/A"}},null,null,null,null,null,null,null,null,null,null,null,null,null,null,null,"〒　７４０－００４４"]
[null,"住所",null,{"$f":"ﾃﾞｰﾀ入力!B34","v":{"$error":"#N/A"}},null,null,null,null,null,null,null,null,null,null,null,null,null,null,null,"山口県岩国市通津２３９６番地",null,null,null,null,null,null,null,null,null,"確認、承認"]
[null,"会社名",null,{"$f":"ﾃﾞｰﾀ入力!B10","v":0},null,null,null,null,null,null,null,null,null,null,null,null,null,null,null,"勝井建設株式会社",null,null,null,null,null,null,null,null,null,"総務部長",null,null,null,"作成"]
[null,null,null,null,null,null,null,null,null,null,null,null,null,null,"御中",null,null,null,null,"電　話　０８２７（３８）１２３１　代表"]
[]
[null,null,null,null,null,null,null,null,null,null,null,null,null,null,null,null,null,null,null,null,null,null,null,null,null,null,null,null,null,"．　　．",null,null,null,"．　　．"]
[null,"下記の通り注文しますので、お引き受けの際は、請書に記名、捺印の上、１０日以内に返送下さい。"]
[null,"なお、請書の製本テープの継ぎ目のところ（表紙と裏紙の双方）に割印を忘れずに押印して下さい。"]
[null,"工事名称",null,null,null,{"$f":"ﾃﾞｰﾀ入力!B6","v":0},null,null,null,null,null,null,null,null,null,null,null,null,"現場名",null,null,null,null,null,{"$f":"ﾃﾞｰﾀ入力!B2","v":0}]
[null,"納入場所",null,null,null,{"$f":"ﾃﾞｰﾀ入力!B8","v":0},null,null,null,null,null,null,null,null,null,null,null,null,"納期",null,null,null,null,null,{"$f":"IF(ﾃﾞｰﾀ入力!B17=0,ﾃﾞｰﾀ入力!B16,ﾃﾞｰﾀ入力!B17)","v":"00:00:00"}]
[null,"工事種別",null,null,null,{"$f":"ﾃﾞｰﾀ入力!B11","v":0}]
[null,"又は物品名"]
[null,"金　　　　　額",null,null,null,{"$f":"\"￥\"&+DBCS(FIXED(ROUND(ﾃﾞｰﾀ入力!B14*1.1,0),0))&+\" －　　\"","v":"￥０ －　　"},null,null,null,null,null,null,null,null,null,null,null,null,"納入方法",null,null,null,null,null,{"$f":"ﾃﾞｰﾀ入力!B18","v":0}]
[null,"（消費税額）",null,null,null,{"$f":"\"（内消費税￥\"&+DBCS(FIXED(ROUND(ﾃﾞｰﾀ入力!B14*0.1,0),0))&+\" －　）　　\"","v":"（内消費税￥０ －　）　　"},null,null,null,null,null,null,null,null,null,null,null,null,"契約不適合責任期間",null,null,null,null,null,{"$f":"IF(ﾃﾞｰﾀ入力!B26=\"無\",\"無　　　\",ﾃﾞｰﾀ入力!B28)","v":"00:00:00"},null,null,null,null,null,null,null,{"$f":"IF(OR(ﾃﾞｰﾀ入力!B27=\"無\",ﾃﾞｰﾀ入力!B26=\"無\"),\"\",\"まで\")","v":"まで"}]
[null,"支払条件",null,"①","出来高支払",null,null,null,"毎月25日締切り、出来高相当額の９０％を翌月２０日に支払い。完了の上、残高を消費税額とともに支払う。",null,null,null,null,null,null,null,null,null,null,null,null,null,null,null,null,null,null,null,null,null,null,null,null,null,null,null,null,{"$f":"ﾃﾞｰﾀ入力!B24","v":0}]
[null,null,null,null,null,null,null,null,null,null,null,null,null,null,null,null,null,null,null,null,null,null,null,"但し",null,{"$f":"\"現金 \"&+AL19&+\"％　手形 \"&+AM19&\"％　期日現金払\"&+AN19&\"％（サイト \"&ﾃﾞｰﾀ入力!$B$23&\"日）\"","v":"現金 0％　手形 0％　期日現金払0％（サイト 日）"},null,null,null,null,null,null,null,null,null,null,null,{"$f":"ﾃﾞｰﾀ入力!B22","v":0},{"$f":"ﾃﾞｰﾀ入力!B21","v":0},{"$f":"ﾃﾞｰﾀ入力!B20","v":0}]
[null,null,null,"②","納入･完成一括払",null,null,null,"検収月25日締切り、検収相当額の１００％を翌月２０日に全額支払う。",null,null,null,null,null,null,null,null,null,null,null,null,null,null,"但し",null,{"$f":"\"現金 \"&+AL20&+\"％　手形 \"&+AM20&\"％　期日現金払\"&+AN20&\"％（サイト \"&ﾃﾞｰﾀ入力!$B$23&\"日）\"","v":"現金 0％　手形 0％　期日現金払0％（サイト 日）"},null,null,null,null,null,null,null,null,null,null,null,{"$f":"ﾃﾞｰﾀ入力!B22","v":0},{"$f":"ﾃﾞｰﾀ入力!B21","v":0},{"$f":"ﾃﾞｰﾀ入力!B20","v":0}]
[null,null,null,null,"※",null,null,null,"支払いの際に安全協力会費として支払いの０．１％を相殺とし、振込に掛かる手数料は下請負人負担とする。"]
[null,"内容･内訳",null,null,null,"　別紙明細書の通り。",null,null,null,null,null,null,null,null,null,null,null,null,"特記事項",null,null,null,null,null,"注文書・請書に記載のない条件については、外注工事特記事項、物品納入特記事項に定めるところによる。"]
[]
[]
[]
[]
[]
[]
[]
[null,"物　品　納　入　特　記　事　項"]
[]
[null,"（総　　則）"]
[null,"１．",{"$f":"\" 勝井建設株式会社を元請負人、\"&ﾃﾞｰﾀ入力!$B$10&\"を下請負人とし、注文書記載の物品納入における特記事項を定める。納入に際しては、本特記仕様書による。\"","v":" 勝井建設株式会社を元請負人、を下請負人とし、注文書記載の物品納入における特記事項を定める。納入に際しては、本特記仕様書による。"}]
[]
[]
[null,"（適用する品質システム）"]
[null,"２．","本物品の納入では、ISO 9001：2015（品質）、ISO 14001：2015（環境）、ＩＳＯ 45001：2018（労働安全衛生）に基づいたマネジメントシステムを適用する。"]
[]
[null,"(納品検査）"]
[null,"３．","物品の注文書記載の納入場所（以下、納入場所という。）への納入に際しては、当社の指定する受入検査責任者の立会のもと、指定された場所、位置に\n保管、養生方法の指示を受け、納品検査を受けること。尚、当該受入検査は、合格後であっても不適合品が発見された場合の責を免じるものではない。"]
[]
[]
[null,"（不適合の処置）"]
[null,"４．","納入物品が、指定する図面、見積条件及び注文書の指示に適合しない場合は、元請負人の指示に従い所定期間内に下請負人の負担で実施すること。\n尚、下請負人が理由なく本注文を履行しない場合、又はこの期間内に履行不可能と認められる場合は、本注文を解約することがある。\nこの場合これに生じる一切の損害は下請負人の負担とする。"]
[]
[]
[null,"（所有権利）"]
[null,"５．","受入検査合格後、納入場所に搬入した物品の所有権は、その都度元請負人に帰属する。"]
[]
[null,"（精　　算）"]
[null,"６．","納入数量に、変更が生じた場合は実納入数量にて変更して精算をする。"]
[]
[null,"（契約不適合責任期間）"]
[null,"７．","元請負人がその注文者に負うべき契約不適合責任期間について、下請負人より納入された物品が契約の内容に適合しないものについての修補費用は\n下請負人の負担とする。尚、その期間は、元請負人が負うべき契約不適合責任期間とする。"]
[]
[]
[null,"（その他）"]
[null,"８．","この特記事項に定めのない事項については、必要に応じて元請負人、下請負人協議のうえ決定する。　　　",null,null,null,null,null,null,null,null,null,null,null,null,null,null,null,null,null,null,null,null,null,null,null,null,null,null,null,null,null,null,null,null,null,"<2020.10.2改定>"]

{"sheet":"請書 (変更用)","index":9,"n_rows":58,"n_cols":38,"rows_kept":58,"cut":false,"hidden":false,"merged":[[12,24,12,36],[22,1,23,4],[22,18,23,23],[22,24,23,36],[18,1,21,2],[18,3,19,3],[21,4,21,7],[20,4,20,7],[18,4,19,7],[14,1,14,4],[14,5,15,17],[15,1,15,4],[12,18,12,23],[13,18,15,23],[12,1,12,4],[12,5,12,17],[13,1,13,4],[13,5,13,17],[16,18,16,23],[16,24,16,36],[13,24,15,36],[19,23,19,24],[19,25,19,36],[20,25,20,36],[17,32,17,33],[20,23,20,24],[11,1,11,8],[11,29,11,32],[11,35,11,36],[11,33,11,34],[17,1,17,4],[17,5,17,17],[17,18,17,23],[17,24,17,31],[16,1,16,4],[16,5,16,17],[5,4,5,13],[6,33,6,36],[7,1,7,3],[7,4,7,13],[5,1,5,3],[9,11,9,26],[9,30,9,31],[9,34,9,35],[0,29,0,36],[1,1,1,36],[2,33,2,36],[3,1,3,13],[3,33,3,36],[3,14,3,15],[2,1,2,13],[0,2,0,11],[50,2,50,36],[28,24,28,31],[29,1,29,31],[31,1,31,3],[32,2,33,36],[35,1,35,7],[38,1,38,4],[36,2,36,36],[39,2,40,36],[51,21,51,30],[52,1,52,9],[53,2,54,36],[56,1,56,4],[57,2,57,30],[42,1,42,5],[43,2,44,36],[46,1,46,5],[47,2,47,36],[49,1,49,4]]}
[null,null,{"$f":"'注文書 (変更用)'!C1","v":"変更契約"}]
[null,"請　　　　　　　　書"]
[null,null,null,null,null,null,null,null,null,null,null,null,null,null,null,null,null,null,null,null,null,null,null,null,null,null,null,null,null,null,null,null,null,"確認、承認"]
[null,"勝井建設株式会社",null,null,null,null,null,null,null,null,null,null,null,null,"御中",null,null,null,null,null,null,null,null,null,null,null,null,null,null,null,null,null,null,"総務部長"]
[]
[null,"住 所"]
[null,null,null,null,null,null,null,null,null,null,null,null,null,null,null,null,null,null,null,null,null,null,null,null,null,null,null,null,null,null,null,null,null,"．　　．"]
[null,"会 社 名"]
[]
[null,null,null,null,null,null,null,null,null,null,null,"下記の通りお請けします。",null,null,null,null,null,null,null,null,null,null,null,null,null,null,null,null,null,null,"印紙",null,null,null,"印紙"]
[]
["日付入力→",{"$f":"'注文書 (変更用)'!AF3","v":"00:00:00"},null,null,null,null,null,null,null,null,null,null,null,null,null,null,null,null,null,null,null,null,null,null,null,null,null,null,null,"（印紙税額は￥　　　　　　",null,null,null,{"$f":"[3]稟議書ﾃﾞｰﾀ!$C$12","v":0},null,"円です）"]
[null,"工事名称",null,null,null,{"$f":"'注文書 (変更用)'!F12","v":0},null,null,null,null,null,null,null,null,null,null,null,null,"現場名",null,null,null,null,null,{"$f":"'注文書 (変更用)'!Y12","v":0}]
[null,"納入場所",null,null,null,{"$f":"'注文書 (変更用)'!F13","v":0},null,null,null,null,null,null,null,null,null,null,null,null,"納期",null,null,null,null,null,{"$f":"'注文書 (変更用)'!Y13","v":"00:00:00"}]
[null,"工事種別",null,null,null,{"$f":"'注文書 (変更用)'!F14","v":0}]
[null,"又は物品名"]
[null,"金　　　　　額",null,null,null,{"$f":"'注文書 (変更用)'!F16","v":"￥０ －　　"},null,null,null,null,null,null,null,null,null,null,null,null,"納入方法",null,null,null,null,null,{"$f":"ﾃﾞｰﾀ入力!B18","v":0}]
[null,"（消費税額）",null,null,null,{"$f":"'注文書 (変更用)'!F17","v":"（内消費税￥０ －　）　　"},null,null,null,null,null,null,null,null,null,null,null,null,"契約不適合責任期間",null,null,null,null,null,{"$f":"'注文書 (変更用)'!Y17","v":"00:00:00"},null,null,null,null,null,null,null,{"$f":"'注文書 (変更用)'!AG17","v":"まで"}]
[null,"支払条件",null,"①","出来高支払",null,null,null,"毎月25日締切り、出来高相当額の９０％を翌月２０日に支払い。完了の上、残高を消費税額とともに支払う。",null,null,null,null,null,null,null,null,null,null,null,null,null,null,null,null,null,null,null,null,null,null,null,null,null,null,null,null,{"$f":"'注文書 (変更用)'!AL18","v":0}]
[null,null,null,null,null,null,null,null,null,null,null,null,null,null,null,null,null,null,null,null,null,null,null,"但し",null,{"$f":"'注文書 (変更用)'!Z19","v":"現金 0％　手形 0％　期日現金払0％（サイト 日）"}]
[null,null,null,"②","納入･完成一括払",null,null,null,"検収月25日締切り、検収相当額の１００％を翌月２０日に全額支払う。",null,null,null,null,null,null,null,null,null,null,null,null,null,null,"但し",null,{"$f":"'注文書 (変更用)'!Z20","v":"現金 0％　手形 0％　期日現金払0％（サイト 日）"}]
[null,null,null,null,"※",null,null,null,"支払いの際に安全協力会費として支払いの０．１％を相殺とし、振込に掛かる手数料は下請負人負担とする。"]
[null,"内容･内訳",null,null,null,"　別紙明細書の通り。",null,null,null,null,null,null,null,null,null,null,null,null,"特記事項",null,null,null,null,null,"注文書・請書に記載のない条件については、外注工事特記事項、物品納入特記事項に定めるところによる。"]
[]
[]
[]
[]
[]
[]
[null,"物　品　納　入　特　記　事　項"]
[]
[null,"（総　　則）"]
[null,"１．",{"$f":"\" 勝井建設株式会社を元請負人、\"&ﾃﾞｰﾀ入力!$B$10&\"を下請負人とし、注文書記載の物品納入における特記事項を定める。納入に際しては、本特記仕様書による。\"","v":" 勝井建設株式会社を元請負人、を下請負人とし、注文書記載の物品納入における特記事項を定める。納入に際しては、本特記仕様書による。"}]
[]
[]
[null,"（適用する品質システム）"]
[null,"２．","本物品の納入では、ISO 9001：2015（品質）、ISO 14001：2015（環境）、ＩＳＯ 45001：2018（労働安全衛生）に基づいたマネジメントシステムを適用する。"]
[]
[null,"(納品検査）"]
[null,"３．","物品の注文書記載の納入場所（以下、納入場所という。）への納入に際しては、当社の指定する受入検査責任者の立会のもと、指定された場所、位置に\n保管、養生方法の指示を受け、納品検査を受けること。尚、当該受入検査は、合格後であっても不適合品が発見された場合の責を免じるものではない。"]
[]
[]
[null,"（不適合の処置）"]
[null,"４．","納入物品が、指定する図面、見積条件及び注文書の指示に適合しない場合は、元請負人の指示に従い所定期間内に下請負人の負担で実施すること。\n尚、下請負人が理由なく本注文を履行しない場合、又はこの期間内に履行不可能と認められる場合は、本注文を解約することがある。\nこの場合これに生じる一切の損害は下請負人の負担とする。"]
[]
[]
[null,"（所有権利）"]
[null,"５．","受入検査合格後、納入場所に搬入した物品の所有権は、その都度元請負人に帰属する。"]
[]
[null,"（精　　算）"]
[null,"６．","納入数量に、変更が生じた場合は実納入数量にて変更して精算をする。"]
[]
[null,"（契約不適合責任期間）"]
[null,"７．","元請負人がその注文者に負うべき契約不適合責任期間について、下請負人より納入された物品が契約の内容に適合しないものについての修補費用は\n下請負人の負担とする。尚、その期間は、元請負人が負うべき契約不適合責任期間とする。"]
[]
[]
[null,"（その他）"]
[null,"８．","この特記事項に定めのない事項については、必要に応じて元請負人、下請負人協議のうえ決定する。　　　",null,null,null,null,null,null,null,null,null,null,null,null,null,null,null,null,null,null,null,null,null,null,null,null,null,null,null,null,null,null,null,null,null,"<2020.10.2改定>"]